Cogmind - Beta 10 X1 @@@ ROGUE MODE // 2020.06.09 @ 20:33:59 Player: Decinym Result: Destroyed Tau Ceti IV! Performance ------------- Evolutions (9) 4500 Regions Visited (33) 6600 Robots Destroyed (293) 1465 Value Destroyed (10481) 10481 Prototype IDs (106) 2120 Alien Tech Used (14) 2800 Bonus (38397) 38397 TOTAL SCORE: 66363 Bonus ------- Triggered High Security 500 Triggered Max Security 3000 High Alert Combat Kills 1539 Follower Combat Kills 1772 Network Hubs Disabled 400 Aligned with FarCom 300 Destroyed Z-Imprinter 1000 Triggered Deep Caves Wall 1000 Exposed GOLEM Chamber 8500 Met Zhirov 300 A7 Reached Mainframe 300 Used Core Reset Matrix 3000 Hacked Protovariant 500 Met MAIN.C 5000 Met Architect 300 Started Test 138-B 500 Started Test 138-C 8000 Destroyed A2 1000 Win 3000 Friendly Fire -1514 Cogmind --------- Core Integrity 519/1600 Matter 235/425 Energy 36/100 System Corruption 18% Temperature Cool (4) Movement Flying (11) Location Subspace Parts ------- > --- POWER (2) -------- (None) > --- PROPULSION (6) --- Electron Diverter Improved Diametric Drive Improved Diametric Drive Cooled Q-thruster > --- UTILITY (15) ----- Medium Storage Unit Large Storage Unit Large Storage Unit Quantum Shading Machine Assembled Suspension Frame Assembled Suspension Frame Zionite Metafield Generator Advanced Melee Analysis Suite Nanoactuators Advanced Force Booster Experimental Weapon Shielding Centrium Medium Armor Plating Centrium Heavy Armor Plating > --- WEAPON (3) ------- Nanosword Nanosword Nanosword > --- INVENTORY (20) --- Improved Quantum Reactor Combat Antigrav System Electron Diverter Cooled Q-thruster Experimental Q-thruster Precision Matter Filter High-powered Transdimensional Reconstructor Integrity Redistributor Sigix Quantum Sheargun Sigix Quantum Sheargun Enhanced Gamma Bomb Array Advanced Micro-nuke Launcher Nanosword Nanosword Sigix Corpse Peak State ------------ > --- POWER ------------ Vortex Chain Reactor > --- PROPULSION ------- Field Propulsion Array Q-thruster Q-thruster Cooled Q-thruster Experimental Q-thruster > --- UTILITY ---------- Medium Storage Unit Large Storage Unit Large Storage Unit Assembled Biocell Array Assembled Suspension Frame Assembled Suspension Frame Advanced Melee Analysis Suite Advanced Melee Analysis Suite Nanoactuators Advanced Reaction Control System Experimental Propulsion Shielding SHELL Armor Experimental Shield Generator > --- WEAPON ----------- Nanosword Sigix Broadsword > --- INVENTORY -------- Improved Quantum Reactor Improved Q-thruster Zionite Metafield Generator Advanced Force Booster Experimental Propulsion Shielding Improved Utility Shielding Experimental Weapon Shielding Medium Regenerative Plating Beam Splitter Transdimensional Reconstructor Subatomic Replicator Sigix Quantum Sheargun Sigix Quantum Sheargun Advanced Micro-nuke Launcher Improved Remote Datajack Nanosword Nanosword Nanosword [Rating: 223] Favorites ----------- Power Heavy Deuterium Engine Engine Heavy Deuterium Engine Power Core Micro Fission Core Reactor Assembled Flux Generator Propulsion Assembled Alloy Leg Treads Improved Treads Leg Assembled Alloy Leg Wheel Compact Wheel Flight Unit Cooled Nuclear Pulse Thruster Utility Large Storage Unit Device Assembled Suspension Frame Storage Large Storage Unit Processor Improved Targeting Computer Hackware Improved Hacking Suite Protection Assembled Alloy Armor Artifact Matter Drive Weapon Assembled Focal Cannon Energy Gun Improved EM Shotgun Energy Cannon Assembled Focal Cannon Ballistic Gun Gauss Rifle Ballistic Cannon Enhanced Gauss Cannon Launcher Mini Grenade Launcher Special Weapon Molecular Deconstructor Impact Weapon Core Stripper Slashing Weapon Nanosword Build | -11 -10 -10 -9 -9 -9 -8 -8 -7 -7 -7 -7 -7 -6 -6 -6 -6 -6 -6 -5 -5 -5 -5 -4 -4 -4 -3 -3 -2 -2 -2 -1 -1 -1 ------- Run | Scr Mat Min Mat Min Exi Min Mat Fac Low Low Zio Dee Pro Fac Ext Cet Arc Hub Fac Upp Upp Zhi Pro Fac Arm Res Qua Res Tes Sec Acc Com Ac0 Slots Evolved 17 | . . . 2 . . . 2 2 . . . . . 2 . . . . 2 . . . . 2 . 2 . 2 . . 1 . . Power 1 | . . . . . . . . . . . . . . . . . . . 1 . . . . . . . . . . . . . . Propulsion 4 | . . . . . . . 1 . . . . . . . . . . . 1 . . . . 1 . 1 . . . . . . . Utility 11 | . . . 2 . . . 1 2 . . . . . 2 . . . . . . . . . 1 . 1 . 2 . . . . . Weapon 1 | . . . . . . . . . . . . . . . . . . . . . . . . . . . . . . . 1 . . Parts Attached 407 | . 4 2 30 4 2 2 9 32 1 6 6 45 1 19 23 5 5 10 17 1 4 20 3 9 20 11 8 17 14 18 14 25 20 Power 38 | . . . 3 . . . . 3 . . . 5 1 1 2 1 . 2 . . . 3 1 3 4 1 2 3 . 1 . . 2 Engine 10 | . . . 3 . . . . 3 . . . . . 1 2 . . 1 . . . . . . . . . . . . . . . Core 7 | . . . . . . . . . . . . 1 . . . . . . . . . . 1 2 2 1 . . . . . . . Reactor 21 | . . . . . . . . . . . . 4 1 . . 1 . 1 . . . 3 . 1 2 . 2 3 . 1 . . 2 Propulsion 72 | . 1 . 7 . 1 . 5 6 . . . 5 . 2 2 . 1 2 6 . . 4 . 5 7 1 1 3 1 2 3 . 7 Treads 2 | . . . 2 . . . . . . . . . . . . . . . . . . . . . . . . . . . . . . Leg 13 | . . . 3 . . . . 1 . . . 4 . . . . 1 2 2 . . . . . . . . . . . . . . Wheel 22 | . 1 . 2 . 1 . 5 4 . . . 1 . 2 2 . . . 4 . . . . . . . . . . . . . . Hover . | . . . . . . . . . . . . . . . . . . . . . . . . . . . . . . . . . . Flight 35 | . . . . . . . . 1 . . . . . . . . . . . . . 4 . 5 7 1 1 3 1 2 3 . 7 Utility 187 | . 3 . 4 1 1 1 2 12 1 3 3 21 . 12 8 3 1 5 9 . 1 11 2 1 6 5 2 7 8 13 10 20 11 Device 77 | . . . 3 1 . 1 . 3 1 2 2 8 . 6 1 . . 2 5 . . 2 1 1 2 4 1 1 5 3 4 10 8 Storage 21 | . 3 . . . 1 . . 2 . . . 4 . . 1 . 1 . 1 . . 4 . . . . . 2 . . . 2 . Processor 10 | . . . 1 . . . 1 1 . . 1 . . 2 1 . . . . . . . . . . . . 1 . . 1 1 . Hackware 15 | . . . . . . . . 1 . . . . . 2 . . . . 1 . . 3 . . 3 1 . 1 1 1 . 1 . Protection 63 | . . . . . . . 1 5 . 1 . 9 . 2 5 3 . 3 2 . 1 2 1 . 1 . 1 2 2 8 5 6 3 Artifact 1 | . . . . . . . . . . . . . . . . . . . . . . . . . . . . . . 1 . . . Weapon 110 | . . 2 16 3 . 1 2 11 . 3 3 14 . 4 11 1 3 1 2 1 3 2 . . 3 4 3 4 5 2 1 5 . Energy Gun 38 | . . 1 10 2 . 1 1 1 . . . 9 . 2 6 1 3 1 . . . . . . . . . . . . . . . Energy Cannon 12 | . . . . . . . . 5 . 2 2 . . . 2 . . . . . . . . . 1 . . . . . . . . Ballistic Gun 4 | . . . 2 . . . . . . . . 2 . . . . . . . . . . . . . . . . . . . . . Ballistic Cannon 1 | . . . . . . . . . . . . . . . . . . . . . 1 . . . . . . . . . . . . Launcher 23 | . . 1 4 1 . . 1 3 . . . 2 . . 3 . . . 1 1 2 . . . . 1 1 1 . 1 . . . Special Weapon 4 | . . . . . . . . . . . 1 1 . . . . . . . . . . . . . . . . 1 . . 1 . Impact Weapon 1 | . . . . . . . . . . . . . . . . . . . . . . . . . . . . . 1 . . . . Slashing Weapon 27 | . . . . . . . . 2 . 1 . . . 2 . . . . 1 . . 2 . . 2 3 2 3 3 1 1 4 . Piercing Weapon . | . . . . . . . . . . . . . . . . . . . . . . . . . . . . . . . . . . Special Melee Weapon . | . . . . . . . . . . . . . . . . . . . . . . . . . . . . . . . . . . Unidentified Prototypes 63 | . . . 3 . . . . 3 . 1 1 10 . . . 2 . 1 2 . . 6 . 1 1 . 1 2 5 11 1 2 10 Parts Lost 91 | . . . 11 2 . 1 4 3 . . . 9 1 5 5 . 2 4 2 1 4 . . 2 4 . 2 . 6 . . 5 18 Power 9 | . . . 1 . . . . 1 . . . 1 . . 1 . . . . . . . . 1 1 . . . . . . . 3 Propulsion 27 | . . . 4 . . . 3 2 . . . 2 . . . . . 1 1 1 1 . . 1 2 . . . 1 . . . 8 Utility 40 | . . . 2 1 . . . . . . . 6 1 4 2 . . 2 1 . 2 . . . 1 . 2 . 5 . . 4 7 Weapon 15 | . . . 4 1 . 1 1 . . . . . . 1 2 . 2 1 . . 1 . . . . . . . . . . 1 . Highest Loss Streak 6 | . . . 4 4 . 1 2 2 . . . 3 1 5 4 . 2 3 1 1 4 . . 2 1 . 1 . 3 . . 5 6 Average Slot Usage (%) 87 | . 92 100 82 99 92 86 86 90 92 90 87 87 98 86 86 90 92 90 84 86 81 52 88 94 94 94 90 89 87 85 89 86 83 Engine 3 | . 14 14 10 11 11 11 9 6 7 7 7 2 . 2 6 1 . . . . . . . . 1 . . . . . . . . Reactor 3 | . . . . . . . . . . . . 3 7 3 . 4 6 5 4 5 5 5 5 5 6 4 5 8 8 4 3 3 2 Treads 1 | . . . 1 22 19 11 7 . . . . . . . . . . . . . . . . . . . . . . . . . . Leg 7 | . 25 14 10 . . . . 6 . . . 11 21 10 6 6 6 14 13 15 14 8 . . . . . . . . . . . Wheel 6 | . 2 14 9 . 2 11 17 15 23 21 21 7 . 4 6 6 6 1 5 5 5 1 . . . . . . . . . . . Flight 3 | . . . . . . . . . . . . . . . . . . . . . . 2 22 25 25 22 18 16 15 16 16 19 18 Device 16 | . . . 6 10 7 9 9 8 15 14 14 15 21 24 20 12 12 13 22 22 19 16 16 19 20 22 25 25 22 17 15 18 23 Storage 17 | . 21 28 22 22 18 11 9 13 15 14 14 15 21 18 18 18 22 24 22 22 22 10 16 15 15 13 13 14 16 16 15 14 11 Processor 3 | . . . 2 11 11 11 9 7 7 7 6 2 . 1 . 6 6 4 . . . . . . . . . . . . 1 6 4 Hackware 2 | . . . . . . . . 1 . . . . . 2 6 6 6 6 2 . . . 11 10 13 12 9 10 9 10 9 1 . Protection 8 | . . . . . . . 6 11 7 12 14 13 12 5 8 15 13 8 . 5 4 2 10 10 6 4 4 5 6 10 14 11 10 Energy Gun 4 | . 14 25 16 22 22 21 16 3 . . . 4 . 5 8 3 11 6 . . . . . . . . . . . . . . . Energy Cannon 4 | . . . . . . . . 8 15 12 6 6 14 2 . 8 . 3 10 7 6 1 . . . . . . . . . . . Slashing Weapon 1 | . . . . . . . . . . . . . . 4 2 . . . . . . . 5 5 5 8 9 7 7 8 11 9 11 Naked Turns . | . . . . . . . . . . . . . . . . . . . . . . . . . . . . . . . . . . Heaviest Build 146 | 13 41 41 47 47 110 95 98 129 124 131 131 128 96 87 96 110 115 124 146 146 146 128 62 64 71 85 80 91 102 97 100 128 99 Greatest Support 123 | 20 20 10 43 43 43 16 32 48 44 44 44 98 98 98 38 28 28 98 98 88 88 80 55 65 83 85 92 108 108 123 123 107 112 Greatest Overweight (x) 7 | . 4 4 4 1 5 5 3 4 2 2 2 4 . 2 3 3 4 4 5 7 2 2 1 . 2 . . 1 1 . . 1 . Average Overweight (x) . | . . 3 1 1 2 5 2 2 2 2 2 1 . 1 1 3 3 2 2 1 1 . . . . . . . . . . . . Largest Inventory Capacity 50 | . 16 16 16 16 30 24 24 50 30 30 30 30 16 16 18 18 24 24 24 24 24 24 16 16 16 16 16 22 20 20 20 24 20 Average Capacity 20 | . 8 16 16 16 18 24 24 29 30 30 30 17 16 16 16 18 22 24 24 24 24 11 16 16 16 16 16 18 20 20 20 20 20 Most Carried 30 | . 10 13 16 16 20 23 24 30 30 30 30 30 16 16 18 18 23 24 24 24 24 23 16 16 16 16 16 20 20 20 20 20 15 Average Carried 19 | . 7 10 14 15 16 20 23 28 29 29 29 16 15 15 16 18 20 23 23 23 23 10 16 15 15 14 15 18 19 19 19 17 12 Final Capacity 30 | 6 16 16 16 16 24 24 24 30 30 30 30 16 16 16 18 18 24 24 24 24 24 16 16 16 16 16 16 20 20 20 20 20 20 Final Carried 30 | 6 9 13 16 16 19 23 24 29 30 30 29 16 16 16 18 18 23 24 24 24 23 16 16 16 13 15 16 20 20 20 20 10 15 Class Distribution -------------------- 25% | Hauler-Mutant 23% | Mutant 15% | Scavenger-Mutant 15% | Hacker-Sprinter 11% | Hauler-Golem Dominant Class ---------------- Mutant | -10/Materials Mutant | -10/Mines Mutant | -9/Materials Mutant | -9/Mines Mutant | -9/Exiles Hauler-Mutant | -8/Mines Hauler-Mutant | -8/Materials Hauler-Mutant | -7/Factory Hauler-Mutant | -7/Lower Caves Hauler-Mutant | -7/Lower Caves Hauler-Mutant | -7/Zion Mutant | -7/Deep Caves Scavenger-Mutant | -6/Proximity Caves Mutant | -6/Factory Mutant | -6/Extension Scavenger-Mutant | -6/Cetus Scavenger-Mutant | -6/Archives Scavenger-Mutant | -6/Hub_04(d) Hauler-Golem | -5/Factory Hauler-Golem | -5/Upper Caves Hauler-Golem | -5/Upper Caves Mutant | -5/Zhirov Hacker-Sprinter | -4/Proximity Caves Hacker-Sprinter | -4/Factory Hacker-Sprinter | -4/Armory Hacker-Sprinter | -3/Research Hacker-Sprinter | -3/Quarantine Hacker-Sprinter | -2/Research Hacker-Sprinter | -2/Testing Hacker-Sprinter | -2/Section 7 Hacker-Sprinter | -1/Access Hauler-Sprinter | -1/Command Alien-Sprinter | -1/Access_0 Resources | -11 -10 -10 -9 -9 -9 -8 -8 -7 -7 -7 -7 -7 -6 -6 -6 -6 -6 -6 -5 -5 -5 -5 -4 -4 -4 -3 -3 -2 -2 -2 -1 -1 -1 ----------- Run | Scr Mat Min Mat Min Exi Min Mat Fac Low Low Zio Dee Pro Fac Ext Cet Arc Hub Fac Upp Upp Zhi Pro Fac Arm Res Qua Res Tes Sec Acc Com Ac0 Matter Collected 5693 | 200 55 89 292 218 . 135 75 400 23 91 100 650 5 213 489 50 73 188 150 84 84 261 38 70 170 40 205 225 130 189 438 173 90 Remotely . | . . . . . . . . . . . . . . . . . . . . . . . . . . . . . . . . . . Salvage Created 13517 | . 146 125 685 169 . 373 555 1139 . 40 . 1628 578 695 734 186 609 1044 1188 316 184 272 . 161 47 194 . 1061 403 86 438 461 . Parts 521 | . 9 12 39 6 . 13 27 44 . 4 . 25 20 23 45 6 28 39 52 11 2 5 . 15 3 10 . 32 7 12 15 17 . Haulers Intercepted 9 | . . . 1 . . . 1 1 . . . . . 1 . . . 1 . . . . . . . . . 3 . . 1 . . Recyclers Shooed 10 | . . 1 . . . . 2 1 . . . . . 1 2 . . 1 . . . . . . . 1 . 1 . . . . . Parts Field Recycled . | . . . . . . . . . . . . . . . . . . . . . . . . . . . . . . . . . . Retrieved Matter . | . . . . . . . . . . . . . . . . . . . . . . . . . . . . . . . . . . Parts Self-Destructed 45 | . . . . . . . . . . 3 . . 20 . . . . . . 12 2 2 6 . . . . . . . . . . Prevented 2 | . . . . . . . . . . . . . . . . . . . . 2 . . . . . . . . . . . . . Kills | -11 -10 -10 -9 -9 -9 -8 -8 -7 -7 -7 -7 -7 -6 -6 -6 -6 -6 -6 -5 -5 -5 -5 -4 -4 -4 -3 -3 -2 -2 -2 -1 -1 -1 ------- Run | Scr Mat Min Mat Min Exi Min Mat Fac Low Low Zio Dee Pro Fac Ext Cet Arc Hub Fac Upp Upp Zhi Pro Fac Arm Res Qua Res Tes Sec Acc Com Ac0 Combat Hostiles Destroyed 206 | . 1 5 21 3 . 3 6 17 . 1 . 51 9 4 16 3 4 14 12 8 7 . . . . 4 . 10 2 . . 5 . Melee 11 | . . . . . . . . . . . . . . 3 . . . . . . . . . . . . . 2 1 . . 5 . Guns 37 | . 1 2 10 2 . 2 3 1 . . . 3 . . 4 . 3 6 . . . . . . . . . . . . . . . Cannons 43 | . . . . . . . . 7 . 1 . 3 9 . . 2 1 5 12 3 . . . . . . . . . . . . . AOE 97 | . . 3 10 1 . 1 3 6 . . . 36 . . 9 1 . 3 . 5 7 . . . . 4 . 8 . . . . . Classes Destroyed 23 | . 3 2 5 2 . . . 1 . . . 4 . . 4 . . . . . . . . . . . . . 1 1 . . . Worker 13 | . . 1 . . . 1 1 . . . . . . 2 1 . . 3 1 . . . . . . . . 1 . 1 1 . . Builder 8 | . . . 1 . . . 1 1 . . . . . . 1 . . 3 . . . . . . . . . . . 1 . . . Tunneler 6 | . . . . 1 . 1 . . . . . . . . 1 . . . . . . . . 1 . . . . . . 2 . . Hauler 9 | . . . 1 . . . 1 1 . . . . . 1 . . . 1 . . . . . . . . . 3 . . 1 . . Recycler 19 | . 1 . . . . 2 2 1 . . . . . 2 1 . . . 4 . . . . . . . . 3 . . 2 1 . Operator 16 | . 1 . 1 . . . . . . . . . . 1 . . 9 . 1 . . . . . . . . 1 1 1 . . . Watcher 12 | . . . 1 . . . . 1 . . . . . 1 1 1 . 1 . . . . . 3 1 1 . 1 . . . . . Swarmer 39 | . . 3 10 . . . . . . . . . . 1 4 . . . 5 1 3 . . . . 4 . 8 . . . . . Saboteur 2 | . . . . . . . . . . . . . . . 1 . . . . . . . . . . . . . . . . 1 . Grunt 61 | . 1 2 7 2 . 3 5 11 . . . . 7 . 5 . . 8 1 6 2 . . . . . . 1 . . . . . Brawler 5 | . . . 1 . . . . 1 . . . . . 1 1 . . 1 . . . . . . . . . . . . . . . Duelist 4 | . . . . 1 . . . . . . . . . . . 1 . . 1 . 1 . . . . . . . . . . . . Researcher 1 | . . . . . . . . . . . . . . . . . . . . . . . . . . . . . . 1 . . . Sentry 22 | . . . 3 . . . 1 2 . . . . 1 2 1 . 4 3 2 1 1 . . . . . . 1 . . . . . Demolisher 1 | . . . . . . . . . . . . . . . 1 . . . . . . . . . . . . . . . . . . Hunter 2 | . . . . . . . . . . . . . . . 2 . . . . . . . . . . . . . . . . . . Programmer 14 | . . . . . . . . 3 . 1 . . 1 . . 1 . 2 3 . . . . . . . . . 1 . . 2 . Behemoth 1 | . . . . . . . . . . . . . . . 1 . . . . . . . . . . . . . . . . . . Cetus Guard 1 | . . . . . . . . . . . . . . . . 1 . . . . . . . . . . . . . . . . . Combat Programmer 2 | . . . . . . . . . . . . . . . . . . . . . . . . . . . . . . . . 2 . Fortress 1 | . . . . . . . . . . . . . . . . . . . . . . . . . . . . . 1 . . . . Z-Light 4 | . . . . . . . . . . . . 4 . . . . . . . . . . . . . . . . . . . . . Assembler 1 | . . . . . . . . . . . . 1 . . . . . . . . . . . . . . . . . . . . . Assembled 34 | . . . . . . . . . . . . 34 . . . . . . . . . . . . . . . . . . . . . Golem 13 | . . . . . . . . . . . . 13 . . . . . . . . . . . . . . . . . . . . . Butcher 2 | . . . . . . . . . . . . . . . 2 . . . . . . . . . . . . . . . . . . Best Kill Streak 45 | . 1 3 12 3 . 3 6 6 . 1 . 45 3 4 6 2 2 6 7 5 7 . . 1 1 4 . 10 1 3 2 2 . Combat Bots Only 44 | . 1 3 10 3 . 3 3 5 . 1 . 44 3 2 6 2 2 3 5 5 7 . . . . 4 . 9 1 . . 2 . Max Kills in Single Turn 7 | . 1 2 3 1 . 1 2 2 . 1 . 7 1 2 2 1 1 6 2 2 2 . . 1 1 1 . 3 1 2 1 1 . Gunslinging . | . . . . . . . . . . . . . . . . . . . . . . . . . . . . . . . . . . Exploded 7 | . . 2 3 1 . 1 1 2 . . . 7 . . 2 1 . 2 . 2 2 . . . . 1 . 3 . . . . . Melee 1 | . . . . . . . . . . . . . . 1 . . . . . . . . . . . . . 1 1 . . 1 . Uniques/NPCs Destroyed 1 | . . . . . . . . . . . . 1 . . . . . . . . . . . . . . . . . . . . . Z-Imprinter (-7/Deep Caves) Combat | -11 -10 -10 -9 -9 -9 -8 -8 -7 -7 -7 -7 -7 -6 -6 -6 -6 -6 -6 -5 -5 -5 -5 -4 -4 -4 -3 -3 -2 -2 -2 -1 -1 -1 -------- Run | Scr Mat Min Mat Min Exi Min Mat Fac Low Low Zio Dee Pro Fac Ext Cet Arc Hub Fac Upp Upp Zhi Pro Fac Arm Res Qua Res Tes Sec Acc Com Ac0 Damage Taken 24604 | . 120 89 1033 274 . 273 379 1154 . 71 . 2413 1045 554 1773 183 639 1335 1009 560 702 . 118 464 467 151 528 388 870 1190 156 2893 3773 Core 2836 | . 23 17 181 57 . 36 16 131 . . . 99 87 35 304 . . 99 88 37 176 . 87 42 17 . 47 40 46 234 . 124 813 Absorbed by Shields 1484 | . . . . . . . . . . . . 115 89 35 105 174 . . . . . . . . . . . . . . . 966 . Core Remaining (%) 70 | 100 . 84 . . . 31 97 . . . . . 54 . . . . 48 . . . . 61 . 94 . 96 . . 77 . . 32 Volleys Fired 609 | . 18 10 67 7 . 12 20 51 1 4 10 83 33 16 63 13 66 66 34 13 6 . . . . 5 . 7 . 3 . 1 . Largest 2 | . 2 2 2 2 . 2 2 2 1 2 1 2 2 2 2 2 2 2 2 2 1 . . . . 1 . 1 . 1 . 1 . Hottest 170 | . 70 90 96 90 . 90 90 135 60 135 . 115 50 110 161 170 170 162 50 50 46 . . . . 46 . 30 . 30 . 40 . Shots Fired 1027 | . 36 16 117 14 . 20 31 94 1 9 10 133 48 31 97 26 125 113 62 22 6 . . . . 5 . 7 . 3 . 1 . Gun 611 | . 36 13 104 14 . 20 26 12 . . . 94 . 18 79 7 116 72 . . . . . . . . . . . . . . . Cannon 310 | . . . . . . . . 74 1 9 . 16 48 13 . 19 9 41 62 18 . . . . . . . . . . . . . Launcher 92 | . . 3 13 . . . 5 8 . . . 20 . . 18 . . . . 4 6 . . . . 5 . 7 . 3 . . . Special 14 | . . . . . . . . . . . 10 3 . . . . . . . . . . . . . . . . . . . 1 . Kinetic 44 | . 18 . 16 . . . . . . . . 10 . . . . . . . . . . . . . . . . . . . . . Thermal 626 | . 18 13 63 . . . . 74 1 9 . 16 48 13 35 20 125 111 62 18 . . . . . . . . . . . . . Explosive 69 | . . 3 13 . . . 5 . . . . 13 . . 18 . . . . 4 3 . . . . . . 7 . 3 . . . Electromagnetic 274 | . . . 25 14 . 20 26 20 . . . 91 . 18 44 6 . 2 . . 3 . . . . 5 . . . . . . . Robot Hit Streak 42 | . 6 13 6 15 . 11 6 10 . 1 . 42 18 11 14 9 12 15 10 3 6 . . . . 3 . 3 . 1 . 2 . Robot Miss Streak 4 | . 3 1 3 2 . 1 2 3 . 2 . 3 2 1 3 2 4 3 2 1 . . . . . 2 . 2 . . . . . Penetration Max . | . . . . . . . . . . . . . . . . . . . . . . . . . . . . . . . . . . Secondary Targets 8 | . . . 2 1 . 1 . . . . . 1 . . 1 . . 2 . . . . . . . . . . . . . . . Max Gunslinging Chain 1 | . . . 1 1 . 1 . . . . . 1 . . 1 . . 1 . . . . . . . . . . . . . . . Shots Hit Robots 829 | . 23 14 69 13 . 19 23 69 . 3 . 95 39 44 69 20 81 68 42 6 3 7 . 6 2 5 . 15 10 6 9 42 27 Core Hits 667 | . 7 10 37 10 . 15 29 40 . 1 . 218 14 16 68 9 37 38 21 15 12 4 . 5 1 8 . 22 3 6 5 10 6 Critical Hits 5 | . . . . . . . . . . . . . . 1 . 1 . . . . . . . . . 1 . . . . . 2 . Critical Kills 2 | . . . . . . . . . . . . . . 1 . . . . . . . . . . . 1 . . . . . . . Critical Parts Destroyed 1 | . . . . . . . . . . . . . . . . . . . . . . . . . . . . . . . . 1 . Melee Attacks 496 | . . . . . . . . 3 . 1 . . . 36 8 . . . . . . 7 7 49 43 19 26 27 25 48 52 93 52 Kinetic 2 | . . . . . . . . . . . . . . . . . . . . . . . . . . . . . 2 . . . . Impact . | . . . . . . . . . . . . . . . . . . . . . . . . . . . . . . . . . . Slashing 494 | . . . . . . . . 3 . 1 . . . 36 8 . . . . . . 7 7 49 43 19 26 27 23 48 52 93 52 Piercing . | . . . . . . . . . . . . . . . . . . . . . . . . . . . . . . . . . . Sneak Attacks 28 | . . . . . . . . . . . . . . 6 2 . . . . . . . . 2 . 1 . 7 . 1 7 2 . Combat Hostiles 1 | . . . . . . . . . . . . . . . . . . . . . . . . . . . . 1 . . . . . Follow-up Attacks 24 | . . . . . . . . . . . . . . . . . . . . . . . . . . . . . 1 . 1 10 12 Damage Inflicted 45681 | . 311 363 1501 323 . 499 1000 2286 . 121 . 6455 1691 1944 4499 972 1964 3171 2229 998 1374 1116 . 514 183 722 . 3388 552 1029 1493 3424 1559 Guns 7881 | . 311 152 949 225 . 289 313 174 . . . 918 . 121 1122 174 1842 1291 . . . . . . . . . . . . . . . Cannons 7601 | . . . . . . . . 1223 . 121 . 350 1691 433 . 406 122 787 2229 239 . . . . . . . . . . . . . Explosions 17091 | . . 211 552 98 . 210 687 851 . . . 5187 . . 3094 392 . 1093 . 759 1374 . . . 59 560 . 1668 . 296 . . . Melee 13108 | . . . . . . . . 38 . . . . . 1390 283 . . . . . . 1116 . 514 124 162 . 1720 552 733 1493 3424 1559 Ramming . | . . . . . . . . . . . . . . . . . . . . . . . . . . . . . . . . . . Kinetic 477 | . 186 . 123 . . . . . . . . 132 . . . . . . . . . . . . . . . . 36 . . . . Thermal 13831 | . 125 152 558 98 . 210 273 1351 . 121 . 517 1691 433 729 823 1964 2236 2229 239 . . . . . 82 . . . . . . . Explosive 11373 | . . 211 506 . . . 414 . . . . 3272 . . 3094 . . . . 759 1094 . . . 59 . . 1668 . 296 . . . Electromagnetic 6928 | . . . 314 225 . 289 313 897 . . . 2534 . 121 393 149 . 935 . . 280 . . . . 478 . . . . . . . Impact . | . . . . . . . . . . . . . . . . . . . . . . . . . . . . . . . . . . Slashing 13072 | . . . . . . . . 38 . . . . . 1390 283 . . . . . . 1116 . 514 124 162 . 1720 516 733 1493 3424 1559 Piercing . | . . . . . . . . . . . . . . . . . . . . . . . . . . . . . . . . . . Highest Corruption 18 | . . . 14 14 14 14 . 6 6 8 8 . . 4 5 5 5 11 2 2 3 3 3 . 1 1 2 . 3 4 . 16 18 Average Corruption 6 | . . . 13 14 14 14 . 2 6 6 8 . . 3 4 5 5 8 1 2 2 3 3 . 1 1 1 . 1 3 . 8 16 Corruption Purged . | . . . . . . . . . . . . . . . . . . . . . . . . . . . . . . . . . . Effects 404 | . . . 36 25 41 24 . 6 10 7 . . . 17 27 6 34 43 1 9 8 19 4 . 2 . 1 . . 11 . 18 55 Message Errors 78 | . . . 10 4 10 3 . 3 2 2 . . . 2 8 . 7 7 1 3 1 8 1 . . . . . . 1 . . 5 Matter Fused 62 | . . . 1 4 10 2 . 2 2 1 . . . 6 4 . 5 14 . . 1 5 1 . . . . . . 2 . 2 . Heat Flow Errors 40 | . . . 3 4 3 1 . . 2 . . . . 1 3 1 2 6 . 1 1 3 1 . . . . . . 3 . 2 3 Energy Discharges 34 | . . . 4 1 4 . . 1 1 1 . . . 5 3 . 2 3 . 1 2 1 . . 1 . . . . 1 . 1 2 Parts Rejected 1 | . . . 1 . . . . . . . . . . . . . . . . . . . . . . . . . . . . . . Data Loss (minor) 47 | . . . 4 4 4 5 . . 3 1 . . . 1 5 2 4 2 . 3 3 2 1 . . . 1 . . 1 . . 1 Data Loss (major) 7 | . . . . . . 1 . . . . . . . . . 1 1 2 . . . . . . . . . . . . . 1 1 Misfires 3 | . . . . . . 1 . . . 1 . . . . . . . 1 . . . . . . . . . . . . . . . Alerts 1 | . . . 1 . . . . . . . . . . . . . . . . . . . . . . . . . . . . . . Misdirections 69 | . . . 4 5 10 10 . . . . . . . . . . . . . . . . . . . . . . . . . 5 35 Targeting Errors 57 | . . . 8 3 . . . . . 1 . . . 2 3 2 12 6 . 1 . . . . 1 . . . . 3 . 7 8 Weapon Failures 5 | . . . . . . 1 . . . . . . . . 1 . 1 2 . . . . . . . . . . . . . . . Overload Shots . | . . . . . . . . . . . . . . . . . . . . . . . . . . . . . . . . . . Overflow Damage 3302 | . . 5 12 29 . 13 31 35 . 4 . 172 73 252 193 21 . 142 138 17 135 324 . . 11 95 . 497 85 35 513 444 26 Projectiles 315 | . . . . . . . . 32 . 4 . 18 73 5 . . . 45 138 . . . . . . . . . . . . . . Explosions 769 | . . 5 12 29 . 13 31 3 . . . 154 . . 72 21 . 97 . 17 135 . . . . 24 . 156 . . . . . Melee 2218 | . . . . . . . . . . . . . . 247 121 . . . . . . 324 . . 11 71 . 341 85 35 513 444 26 Knockbacks . | . . . . . . . . . . . . . . . . . . . . . . . . . . . . . . . . . . Impact . | . . . . . . . . . . . . . . . . . . . . . . . . . . . . . . . . . . Kinetic . | . . . . . . . . . . . . . . . . . . . . . . . . . . . . . . . . . . Secondary . | . . . . . . . . . . . . . . . . . . . . . . . . . . . . . . . . . . Self-Inflicted Damage 1048 | . . 29 32 49 . 152 20 83 . . . . . . 26 . . 208 . 99 283 . . . . 31 . . . 36 . . . Shots 27 | . . 1 1 1 . 4 1 4 . . . . . . 1 . . 3 . 3 6 . . . . 1 . . . 1 . . . Rammed . | . . . . . . . . . . . . . . . . . . . . . . . . . . . . . . . . . . Targets Rammed . | . . . . . . . . . . . . . . . . . . . . . . . . . . . . . . . . . . Kicked . | . . . . . . . . . . . . . . . . . . . . . . . . . . . . . . . . . . Crushed . | . . . . . . . . . . . . . . . . . . . . . . . . . . . . . . . . . . Highest Temperature 394 | . 132 177 247 197 238 198 19 105 89 27 . 48 . 225 189 394 333 342 . 169 85 219 210 2 124 . 253 25 208 249 95 330 120 Average Temperature 81 | . 46 80 54 92 113 108 6 31 44 12 . 20 . 127 49 161 108 124 . 105 57 95 95 1 63 . 56 17 108 78 18 52 60 Received Heat Transfer 3884 | . 66 27 255 48 . 63 180 288 . . . 561 336 42 266 . 108 357 63 54 81 . 9 66 90 9 36 54 45 126 9 309 336 Effects 14 | . . . . . . . . . . . . . . . . 3 3 6 . . . . . . . . 1 . 1 . . . . Shutdowns 1 | . . . . . . . . . . . . . . . . . . 1 . . . . . . . . . . . . . . . Energy Bleed 2 | . . . . . . . . . . . . . . . . . . 1 . . . . . . . . . . 1 . . . . Interference 10 | . . . . . . . . . . . . . . . . 3 3 3 . . . . . . . . 1 . . . . . . Damage (minor) 1 | . . . . . . . . . . . . . . . . . . 1 . . . . . . . . . . . . . . . Siege Activations . | . . . . . . . . . . . . . . . . . . . . . . . . . . . . . . . . . . Robots Corrupted 14 | . . . . . . . . 3 . . . 9 . 1 1 . . . . . . . . . . . . . . . . . . Combat Hostiles 14 | . . . . . . . . 3 . . . 9 . 1 1 . . . . . . . . . . . . . . . . . . Parts Fried 26 | . . . 3 2 . 1 1 7 . . . 1 . 2 1 . . 7 . . . . . . . 1 . . . . . . . Impact Corruptions . | . . . . . . . . . . . . . . . . . . . . . . . . . . . . . . . . . . Robots Melted 3 | . . . 1 . . . . . . . . . . . 2 . . . . . . . . . . . . . . . . . . Combat Hostiles 3 | . . . 1 . . . . . . . . . . . 2 . . . . . . . . . . . . . . . . . . Parts Melted 16 | . . . 2 . . . . 4 . . . . . . 1 1 7 1 . . . . . . . . . . . . . . . Heat Transferred 15763 | . 370 409 1349 150 . 200 250 2111 . 148 . 350 975 275 1450 768 3071 2537 1150 150 . . . . . 50 . . . . . . . Parts Sabotaged 1 | . . . . . . . . . . . . . . . . . . . . . . . . . . . . . . 1 . . . Parts Stolen . | . . . . . . . . . . . . . . . . . . . . . . . . . . . . . . . . . . Parts Stripped . | . . . . . . . . . . . . . . . . . . . . . . . . . . . . . . . . . . Power Chain Reactions 17 | . . . 1 1 . 4 2 2 . . . 3 . . . 1 . 2 . . . . . . . 1 . . . . . . . Missiles Intercepted . | . . . . . . . . . . . . . . . . . . . . . . . . . . . . . . . . . . Alert | -11 -10 -10 -9 -9 -9 -8 -8 -7 -7 -7 -7 -7 -6 -6 -6 -6 -6 -6 -5 -5 -5 -5 -4 -4 -4 -3 -3 -2 -2 -2 -1 -1 -1 ------- Run | Scr Mat Min Mat Min Exi Min Mat Fac Low Low Zio Dee Pro Fac Ext Cet Arc Hub Fac Upp Upp Zhi Pro Fac Arm Res Qua Res Tes Sec Acc Com Ac0 Peak Influence 2319 | . 60 148 439 236 . 96 248 301 . . . . . 146 997 699 479 394 187 . . . . 365 185 762 1885 1727 1724 2319 1446 957 . Average Influence 376 | . 39 98 164 186 . 73 124 126 . . . . . 64 293 619 363 143 90 . . . . 155 85 397 1758 1290 1661 2018 883 773 . Maximum Alert Level 5 | . . . 2 1 . . 1 1 . . . . . . 3 2 2 1 . . . . . 1 . 3 5 5 5 5 4 3 . Low Security (%) 58 | . 100 100 67 26 . 100 86 75 . . . . . 100 61 . . 75 100 . . . . 61 100 48 . . . . . . . Level 1 15 | . . . 29 73 . . 13 24 . . . . . . 8 . 57 24 . . . . . 38 . 3 . . . . . . . Level 2 6 | . . . 3 . . . . . . . . . . . 5 100 42 . . . . . . . . 25 . . . . . 35 . Level 3 9 | . . . . . . . . . . . . . . . 25 . . . . . . . . . . 23 . 11 . . 93 64 . Level 4 3 | . . . . . . . . . . . . . . . . . . . . . . . . . . . . 80 . . 5 . . Level 5 . | . . . . . . . . . . . . . . . . . . . . . . . . . . . . 5 . . . . . High Security . | . . . . . . . . . . . . . . . . . . . . . . . . . . . . 1 . . . . . Max Security 6 | . . . . . . . . . . . . . . . . . . . . . . . . . . . 99 . 99 99 . . . Squads Dispatched 89 | . 2 . 2 . . . . 5 . . . . . 3 3 . . 4 2 . 1 . . 4 5 2 12 5 15 21 1 2 . Investigation 9 | . . . 1 . . . . 1 . . . . . 2 . . . . 1 . . . . 1 1 1 . 1 . . . . . Extermination 10 | . . . . . . . . 2 . . . . . . . . . 1 1 . . . . 2 2 . . 1 . . . 1 . Reinforcement 18 | . 2 . 1 . . . . 2 . . . . . 1 1 . . 3 . . . . . 1 2 1 . 2 1 1 . . . Assault 51 | . . . . . . . . . . . . . . . 2 . . . . . 1 . . . . . 12 1 13 20 1 1 . Garrison 1 | . . . . . . . . . . . . . . . . . . . . . . . . . . . . . 1 . . . . Intercept . | . . . . . . . . . . . . . . . . . . . . . . . . . . . . . . . . . . Construction Impeded 3 | . . . . . . . . . . . . . . . 1 . . 1 . . . . . . . 1 . . . . . . . Haulers Reinforced 4 | . . . . . . . . 1 . . . . . 1 . . . 1 . . . . . . . . . 1 . . . . . Stealth | -11 -10 -10 -9 -9 -9 -8 -8 -7 -7 -7 -7 -7 -6 -6 -6 -6 -6 -6 -5 -5 -5 -5 -4 -4 -4 -3 -3 -2 -2 -2 -1 -1 -1 --------- Run | Scr Mat Min Mat Min Exi Min Mat Fac Low Low Zio Dee Pro Fac Ext Cet Arc Hub Fac Upp Upp Zhi Pro Fac Arm Res Qua Res Tes Sec Acc Com Ac0 Distress Signals 29 | . . . 4 . . . . 3 . . . . . . 1 1 . 1 . . . . . 2 5 . . 2 2 3 1 4 . Communications Jammed 57 | . . . . . . . . . . . . . . . 34 . 2 10 11 . . . . . . . . . . . . . . Distress Signals 56 | . . . . . . . . . . . . . . . 34 . 2 9 11 . . . . . . . . . . . . . . Times Spotted 767 | . 7 4 31 4 . 3 7 29 . 1 . 74 12 8 42 9 19 24 15 8 7 . 2 31 68 9 52 37 59 105 25 41 34 Peak Tracking Total 48 | . 2 3 6 3 . 3 3 6 . 1 . 36 4 3 8 5 1 4 6 5 9 . 1 17 21 5 29 11 34 48 8 19 29 Tactical Retreats 88 | . 2 . 1 . . . 1 1 . . . 1 4 1 . . . 6 . . 1 . . 3 18 1 11 6 7 9 7 6 2 Traps | -11 -10 -10 -9 -9 -9 -8 -8 -7 -7 -7 -7 -7 -6 -6 -6 -6 -6 -6 -5 -5 -5 -5 -4 -4 -4 -3 -3 -2 -2 -2 -1 -1 -1 ------- Run | Scr Mat Min Mat Min Exi Min Mat Fac Low Low Zio Dee Pro Fac Ext Cet Arc Hub Fac Upp Upp Zhi Pro Fac Arm Res Qua Res Tes Sec Acc Com Ac0 Traps Triggered 20 | . . . 2 . . . . 4 . . . . . 1 2 . . 1 4 . . . . . . 1 2 1 . . 2 . . Indirectly 4 | . . . . . . . . 3 . . . . . . . . . . . . . . . . . 1 . . . . . . . Trap Hack Attempts . | . . . . . . . . . . . . . . . . . . . . . . . . . . . . . . . . . . Triggered . | . . . . . . . . . . . . . . . . . . . . . . . . . . . . . . . . . . Disarmed 6 | . . . . . . . . . . . . . . . . . . . . . . . . . . . . . . . 6 . . Reprogrammed . | . . . . . . . . . . . . . . . . . . . . . . . . . . . . . . . . . . Reused . | . . . . . . . . . . . . . . . . . . . . . . . . . . . . . . . . . . Traps Extracted . | . . . . . . . . . . . . . . . . . . . . . . . . . . . . . . . . . . Installed . | . . . . . . . . . . . . . . . . . . . . . . . . . . . . . . . . . . Triggered 2 | . . . . . . . . . . 2 . . . . . . . . . . . . . . . . . . . . . . . Machines | -11 -10 -10 -9 -9 -9 -8 -8 -7 -7 -7 -7 -7 -6 -6 -6 -6 -6 -6 -5 -5 -5 -5 -4 -4 -4 -3 -3 -2 -2 -2 -1 -1 -1 ---------- Run | Scr Mat Min Mat Min Exi Min Mat Fac Low Low Zio Dee Pro Fac Ext Cet Arc Hub Fac Upp Upp Zhi Pro Fac Arm Res Qua Res Tes Sec Acc Com Ac0 Machines Disabled 66 | . 1 . 3 . . . 1 6 1 . . 4 . 1 3 2 3 4 1 . 1 . . . 6 3 4 1 2 9 . 1 9 Max in Single Turn 6 | . 1 . 1 . . . 1 6 1 . . 1 . 1 . . 1 2 1 . 1 . . . 1 1 1 1 1 1 . 1 1 Garrison Access 9 | . . . . . . . . 1 . . . . . . . . . 1 1 . . . . 2 . 1 . 1 . . 2 . . Network Hub 2 | . . . . . . . . . . . . . . . . . . 2 . . . . . . . . . . . . . . . Energy Cycler 2 | . . . . . . . . . . . . . . . 2 . . . . . . . . . . . . . . . . . . Machines Sabotaged . | . . . . . . . . . . . . . . . . . . . . . . . . . . . . . . . . . . Garrisons Compromised . | . . . . . . . . . . . . . . . . . . . . . . . . . . . . . . . . . . Overloaded Fab Kills . | . . . . . . . . . . . . . . . . . . . . . . . . . . . . . . . . . . Fab Network Shutdowns 2 | . . . . . . . . . . . . . . . . . . . . . . . . . . 1 . 1 . . . . . Hacking | -11 -10 -10 -9 -9 -9 -8 -8 -7 -7 -7 -7 -7 -6 -6 -6 -6 -6 -6 -5 -5 -5 -5 -4 -4 -4 -3 -3 -2 -2 -2 -1 -1 -1 --------- Run | Scr Mat Min Mat Min Exi Min Mat Fac Low Low Zio Dee Pro Fac Ext Cet Arc Hub Fac Upp Upp Zhi Pro Fac Arm Res Qua Res Tes Sec Acc Com Ac0 Machines Accessed 120 | . . . 3 . 2 . 2 6 3 . . . 1 4 6 1 1 5 4 . . 4 . 16 15 8 . 13 1 . 15 9 1 Terminals 74 | . . . 1 . . . 1 4 . . . . 1 2 6 1 . 4 3 . . . . 10 9 4 . 9 1 . 10 8 . Fabricators 14 | . . . . . . . . . . . . . . 1 . . . . . . . . . 3 5 1 . 1 . . 3 . . Repair Stations 4 | . . . 1 . . . . 1 . . . . . . . . . . . . . . . . 1 . . . . . . 1 . Recycling Units . | . . . . . . . . . . . . . . . . . . . . . . . . . . . . . . . . . . Scanalyzers 6 | . . . 1 . . . 1 . . . . . . . . . . . . . . . . 1 . 2 . 1 . . . . . Garrison Access 11 | . . . . . . . . 1 . . . . . 1 . . . 1 1 . . . . 2 . 1 . 2 . . 2 . . Total Hacks 495 | . . . 7 . 6 . 5 13 9 . . . 4 9 19 1 2 16 16 . . 17 . 90 87 33 . 50 7 . 66 31 7 Successful 271 | . . . 7 . 6 . 4 7 9 . . . 2 1 14 1 2 7 3 . . 17 . 38 55 22 . 23 2 . 35 9 7 Failed 221 | . . . . . . . 1 6 . . . . 2 8 5 . . 9 13 . . . . 51 31 10 . 27 5 . 31 22 . Catastrophic 51 | . . . . . . . . 1 . . . . 1 2 . . . 3 5 . . . . 14 3 1 . 7 . . 8 6 . Database Lockouts 5 | . . . . . . . . . . . . . . . . . . . . . . . . 2 2 1 . . . . . . . Manual 240 | . . . 1 . 1 . 1 7 1 . 1 . 3 3 12 . . 12 12 . . . . 51 52 21 . 25 4 . 22 11 . Terminals 318 | . . . 1 . . . 3 10 . . . . 4 4 19 1 . 14 15 . . . . 61 52 20 . 37 7 . 42 28 . Fabricators 78 | . . . . . . . . . . . . . . 3 . . . . . . . . . 17 32 4 . 5 . . 17 . . Repair Stations 10 | . . . 2 . . . . 2 . . . . . . . . . . . . . . . . 3 . . . . . . 3 . Recycling Units . | . . . . . . . . . . . . . . . . . . . . . . . . . . . . . . . . . . Scanalyzers 27 | . . . 4 . . . 2 . . . . . . . . . . . . . . . . 8 . 8 . 5 . . . . . Garrison Access 21 | . . . . . . . . 1 . . . . . 2 . . . 2 1 . . . . 4 . 1 . 3 . . 7 . . Terminal Hacks 140 | . . . 1 . 6 . 1 3 9 . . . 2 . 9 1 2 6 1 . . 17 . 16 20 7 . 9 2 . 16 5 7 Record 20 | . . . . . 5 . . . 7 . . . 1 . . . 2 . . . . 5 . . . . . . . . . . . Part Schematic 14 | . . . . . . . . 1 . . . . . . . . . . . . . 4 . 3 2 1 . . . . 2 1 . Robot Analysis 5 | . . . . . . . . . . . . . . . . . . . . . . 4 . . 1 . . . . . . . . Prototype ID Bank 5 | . . . . . . . . . . . . . . . . . . . . . . 4 . . . . . 1 . . . . . Open Door 9 | . . . . . . . . . 2 . . . . . 4 1 . . . . . . . . 1 . . . . . 1 . . Level Access Points 2 | . . . . . . . . . . . . . 1 . . . . 1 . . . . . . . . . . . . . . . Branch Access Points 7 | . . . 1 . . . . 1 . . . . . . . . . . 1 . . . . 1 . 1 . 1 . . 1 . . Emergency Access Points 1 | . . . . . . . . . . . . . . . . . . 1 . . . . . . . . . . . . . . . Machine Index 6 | . . . . . . . . . . . . . . . . . . . . . . . . 1 1 1 . 1 . . 1 1 . Terminal Index 3 | . . . . . . . . . . . . . . . . . . . . . . . . . 1 . . . . . 1 1 . Fabricator Index 2 | . . . . . . . . . . . . . . . . . . . . . . . . 1 . . . . . . 1 . . Alert Level 13 | . . . . . . . . . . . . . . . 2 . . . . . . . . 2 3 1 . 2 . . 2 1 . Unreport Threat 24 | . . . . . . . . 1 . . . . . . 2 . . 2 . . . . . 2 3 3 . 4 1 . 6 . . Locate Traps 2 | . . . . . . . . . . . . . . . 1 . . . . . . . . 1 . . . . . . . . . Disarm Traps 1 | . . . . . . . . . . . . . . . . . . . . . . . . . . . . . . . 1 . . Dispatch Records 1 | . . . . . . . . . . . . . . . . . . . . . . . . . 1 . . . . . . . . Recall Investigation 2 | . . . . . . . . . . . . . . . . . . . . . . . . 1 1 . . . . . . . . Recall Extermination 2 | . . . . . . . . . . . . . . . . . . . . . . . . 2 . . . . . . . . . Recall Reinforcements 3 | . . . . . . . . . . . . . . . . . . . . . . . . 1 2 . . . . . . . . Hauler Manifests 1 | . . . . . . . . . . . . . . . . . . . . . . . . . 1 . . . . . . . . Zone Layout 7 | . . . . . . . 1 . . . . . . . . . . 2 . . . . . 1 3 . . . . . . . . EX-Prototype ID Bank 1 | . . . . . 1 . . . . . . . . . . . . . . . . . . . . . . . . . . . . Protovariant Controls 1 | . . . . . . . . . . . . . . . . . . . . . . . . . . . . . 1 . . . . Disengage Seal 1 | . . . . . . . . . . . . . . . . . . . . . . . . . . . . . . . . 1 . Gate Test 138-A 1 | . . . . . . . . . . . . . . . . . . . . . . . . . . . . . . . . . 1 Gate Test 138-B 2 | . . . . . . . . . . . . . . . . . . . . . . . . . . . . . . . . . 2 Gate Test 138-C 3 | . . . . . . . . . . . . . . . . . . . . . . . . . . . . . . . . . 3 Gate Test 138-END 1 | . . . . . . . . . . . . . . . . . . . . . . . . . . . . . . . . . 1 Fabricator Hacks 32 | . . . . . . . . . . . . . . 1 . . . . . . . . . 5 12 2 . 2 . . 10 . . Network Status 2 | . . . . . . . . . . . . . . . . . . . . . . . . . 1 . . . . . 1 . . Load Schematic 15 | . . . . . . . . . . . . . . 1 . . . . . . . . . 3 5 1 . 1 . . 4 . . Build 15 | . . . . . . . . . . . . . . . . . . . . . . . . 2 6 1 . 1 . . 5 . . Repair Station Hacks 9 | . . . 2 . . . . 2 . . . . . . . . . . . . . . . . 3 . . . . . . 2 . Scan Component 4 | . . . 1 . . . . 1 . . . . . . . . . . . . . . . . 1 . . . . . . 1 . Repair 4 | . . . 1 . . . . 1 . . . . . . . . . . . . . . . . 1 . . . . . . 1 . Refit 1 | . . . . . . . . . . . . . . . . . . . . . . . . . 1 . . . . . . . . Recycling Unit Hacks . | . . . . . . . . . . . . . . . . . . . . . . . . . . . . . . . . . . Scanalyzer 19 | . . . 4 . . . 2 . . . . . . . . . . . . . . . . 4 . 6 . 3 . . . . . Insert Component 12 | . . . 2 . . . 1 . . . . . . . . . . . . . . . . 2 . 4 . 3 . . . . . Analyze 7 | . . . 2 . . . 1 . . . . . . . . . . . . . . . . 2 . 2 . . . . . . . Garrison Access Hacks 9 | . . . . . . . . 1 . . . . . . . . . 1 1 . . . . 2 . 1 . 1 . . 2 . . Seal Access 9 | . . . . . . . . 1 . . . . . . . . . 1 1 . . . . 2 . 1 . 1 . . 2 . . Unauthorized Hacks 62 | . . . . . . . 1 1 . . . . . . 5 . . . 1 . . . . 11 20 6 . 8 . . 7 2 . Terminals 38 | . . . . . . . 1 1 . . . . . . 5 . . . 1 . . . . 7 9 4 . 5 . . 3 2 . Track 2 | . . . . . . . . . . . . . . . . . . . . . . . . . . 1 . . . . . 1 . Assimilate 7 | . . . . . . . . . . . . . . . . . . . . . . . . 3 3 . . 1 . . . . . Botnet 22 | . . . . . . . 1 1 . . . . . . 4 . . . 1 . . . . 3 3 2 . 3 . . 3 1 . Detonate 1 | . . . . . . . . . . . . . . . . . . . . . . . . . 1 . . . . . . . . Disrupt 5 | . . . . . . . . . . . . . . . 1 . . . . . . . . . 2 1 . 1 . . . . . Operators 1 | . . . . . . . . . . . . . . . . . . . . . . . . 1 . . . . . . . . . Fabricators 23 | . . . . . . . . . . . . . . . . . . . . . . . . 4 11 2 . 2 . . 4 . . Report 3 | . . . . . . . . . . . . . . . . . . . . . . . . . 3 . . . . . . . . Prioritize 11 | . . . . . . . . . . . . . . . . . . . . . . . . 2 5 1 . 1 . . 2 . . Siphon 9 | . . . . . . . . . . . . . . . . . . . . . . . . 2 3 1 . 1 . . 2 . . Repair Stations . | . . . . . . . . . . . . . . . . . . . . . . . . . . . . . . . . . . Recycling Units . | . . . . . . . . . . . . . . . . . . . . . . . . . . . . . . . . . . Scanalyzers . | . . . . . . . . . . . . . . . . . . . . . . . . . . . . . . . . . . Garrison Access 1 | . . . . . . . . . . . . . . . . . . . . . . . . . . . . 1 . . . . . Reprogram 1 | . . . . . . . . . . . . . . . . . . . . . . . . . . . . 1 . . . . . Data Cores Recovered 3 | . . . 1 . . . . . . . . . . . . . . . 1 . . . . . . . . 1 . . . . . Used . | . . . . . . . . . . . . . . . . . . . . . . . . . . . . . . . . . . Hacking Detections 92 | . . . 2 . . . 2 4 . . . . 1 4 6 1 . 5 3 . . . . 14 8 6 . 12 1 . 15 8 . Full Trace Events 6 | . . . 1 . . . . 1 . . . . . 2 . . . . 1 . . . . . . . . 1 . . . . . Feedback Events . | . . . . . . . . . . . . . . . . . . . . . . . . . . . . . . . . . . Feedback Blocked . | . . . . . . . . . . . . . . . . . . . . . . . . . . . . . . . . . . Robot Schematics Acquired . | . . . . . . . . . . . . . . . . . . . . . . . . . . . . . . . . . . Robots Built . | . . . . . . . . . . . . . . . . . . . . . . . . . . . . . . . . . . Matter . | . . . . . . . . . . . . . . . . . . . . . . . . . . . . . . . . . . Time . | . . . . . . . . . . . . . . . . . . . . . . . . . . . . . . . . . . Total Robot Build Rating . | . . . . . . . . . . . . . . . . . . . . . . . . . . . . . . . . . . Part Schematics Acquired 21 | . . . 2 . . . 1 1 . . . . . . . . . . . . . 4 . 5 2 3 . . . . 2 1 . Parts Built 17 | . . . . . . . . . . . . . . . . . . . . . . . . 2 7 1 . 1 . . 6 . . Matter 3800 | . . . . . . . . . . . . . . . . . . . . . . . . 614 1594 288 . 288 . . 1016 . . Time 1054 | . . . . . . . . . . . . . . . . . . . . . . . . 280 516 34 . 51 . . 173 . . Total Part Build Rating 115 | . . . . . . . . . . . . . . . . . . . . . . . . 14 51 8 . 8 . . 34 . . Parts Repaired 4 | . . . 1 . . . . 1 . . . . . . . . . . . . . . . . 1 . . . . . . 1 . Time 183 | . . . 26 . . . . 51 . . . . . . . . . . . . . . . . 80 . . . . . . 26 . Parts Recycled . | . . . . . . . . . . . . . . . . . . . . . . . . . . . . . . . . . . Recycled Matter . | . . . . . . . . . . . . . . . . . . . . . . . . . . . . . . . . . . Retrieved Matter . | . . . . . . . . . . . . . . . . . . . . . . . . . . . . . . . . . . Retrieved Components . | . . . . . . . . . . . . . . . . . . . . . . . . . . . . . . . . . . Parts Scanalyzed 7 | . . . 2 . . . 1 . . . . . . . . . . . . . . . . 2 . 2 . . . . . . . Part Schematics Acquired 7 | . . . 2 . . . 1 . . . . . . . . . . . . . . . . 2 . 2 . . . . . . . Parts Damaged 1 | . . . . . . . . . . . . . . . . . . . . . . . . . . 1 . . . . . . . Bothacking | -11 -10 -10 -9 -9 -9 -8 -8 -7 -7 -7 -7 -7 -6 -6 -6 -6 -6 -6 -5 -5 -5 -5 -4 -4 -4 -3 -3 -2 -2 -2 -1 -1 -1 ------------ Run | Scr Mat Min Mat Min Exi Min Mat Fac Low Low Zio Dee Pro Fac Ext Cet Arc Hub Fac Upp Upp Zhi Pro Fac Arm Res Qua Res Tes Sec Acc Com Ac0 Used RIF Installer . | . . . . . . . . . . . . . . . . . . . . . . . . . . . . . . . . . . Robots Hacked 1 | . . . . . . . . . . . . . . . . . . . . . . . . . . . . . . . . 1 . Non-combat . | . . . . . . . . . . . . . . . . . . . . . . . . . . . . . . . . . . Combat 1 | . . . . . . . . . . . . . . . . . . . . . . . . . . . . . . . . 1 . Robot Hacks Applied 1 | . . . . . . . . . . . . . . . . . . . . . . . . . . . . . . . . 1 . parse_system 1 | . . . . . . . . . . . . . . . . . . . . . . . . . . . . . . . . 1 . Relay Couplers Released 3 | . . . . . . . . 3 . . . . . . . . . . . . . . . . . . . . . . . . . Programmers 3 | . . . . . . . . 3 . . . . . . . . . . . . . . . . . . . . . . . . . Robots Rewired 26 | . . . . . . . . . . . . . . . 15 . . . . . 2 . . . 9 . . . . . . . . Allies Hacked 1 | . . . . . . . . . . . . . . . . 1 . . . . . . . . . . . . . . . . . Hacks Repelled . | . . . . . . . . . . . . . . . . . . . . . . . . . . . . . . . . . . Allies | -11 -10 -10 -9 -9 -9 -8 -8 -7 -7 -7 -7 -7 -6 -6 -6 -6 -6 -6 -5 -5 -5 -5 -4 -4 -4 -3 -3 -2 -2 -2 -1 -1 -1 -------- Run | Scr Mat Min Mat Min Exi Min Mat Fac Low Low Zio Dee Pro Fac Ext Cet Arc Hub Fac Upp Upp Zhi Pro Fac Arm Res Qua Res Tes Sec Acc Com Ac0 Total Allies 54 | . . . . 1 . . . . . . 2 1 . . 20 . . . . . 2 . . 3 12 . . 5 . . . . 8 Largest Group 13 | . . . . 1 . . . . . . 2 3 . . 13 2 1 . . . 2 2 2 2 4 . . 4 . . . . . Highest-Rated Group 477 | . . . . 31 . . . . . . 188 306 . . 477 187 149 . . . 60 60 57 36 192 . . 232 . . . . . Highest-Rated Ally 156 | . . . . 31 . . . . . . 94 118 . . 156 156 149 . . . 30 30 30 26 56 . . 58 . . . . . Total Orders 7 | . . . . . . . . . . . . . . 2 . . . . 1 . . 3 1 . . . . . . . . . . STAY 2 | . . . . . . . . . . . . . . . . . . . . . . 2 . . . . . . . . . . . ROAM 1 | . . . . . . . . . . . . . . . . . . . . . . 1 . . . . . . . . . . . COLLECT 3 | . . . . . . . . . . . . . . 1 . . . . 1 . . . 1 . . . . . . . . . . EXPLORE 1 | . . . . . . . . . . . . . . 1 . . . . . . . . . . . . . . . . . . . Ally Attacks 438 | . . . . . . . . . . . . 159 . . 201 32 . . . . . . 9 . 21 . . 12 . . . . 4 Total Damage 14322 | . . . . . . . . . . . . 6678 . . 5120 778 . . . . . . 320 . 909 . . 454 . . . . 63 Kills 68 | . . . . . . . . . . . . 28 . . 27 5 . . . . . . 1 . 5 . . 2 . . . . . Allies Corrupted 2 | . . . . . . . . . . . . . . . . . . . . . . . . . 2 . . . . . . . . Allies Melted . | . . . . . . . . . . . . . . . . . . . . . . . . . . . . . . . . . . Intel | -11 -10 -10 -9 -9 -9 -8 -8 -7 -7 -7 -7 -7 -6 -6 -6 -6 -6 -6 -5 -5 -5 -5 -4 -4 -4 -3 -3 -2 -2 -2 -1 -1 -1 ------- Run | Scr Mat Min Mat Min Exi Min Mat Fac Low Low Zio Dee Pro Fac Ext Cet Arc Hub Fac Upp Upp Zhi Pro Fac Arm Res Qua Res Tes Sec Acc Com Ac0 Robot Analysis Total 5 | . . . . . . . . . . . . . . . . . . . . . . 4 . . 1 . . . . . . . . Derelict Logs Recovered 7 | . . 1 . 1 . . . . 1 . 2 . . . . . . . . 1 1 . . . . . . . . . . . . Drone Launches 5 | . . . . . . . . . . . . . . 1 . . . . 1 . . . 3 . . . . . . . . . . Drone Recoveries 1 | . . . . . . . . . . . . . . 1 . . . . . . . . . . . . . . . . . . . Exploration | -11 -10 -10 -9 -9 -9 -8 -8 -7 -7 -7 -7 -7 -6 -6 -6 -6 -6 -6 -5 -5 -5 -5 -4 -4 -4 -3 -3 -2 -2 -2 -1 -1 -1 ------------- Run | Scr Mat Min Mat Min Exi Min Mat Fac Low Low Zio Dee Pro Fac Ext Cet Arc Hub Fac Upp Upp Zhi Pro Fac Arm Res Qua Res Tes Sec Acc Com Ac0 Turns Passed 24017 | . 224 195 675 529 875 332 372 1155 454 318 1543 4003 704 775 1296 198 763 1146 1322 772 830 1236 191 447 785 216 250 431 233 376 583 452 336 Spaces Moved 22754 | 1 126 145 286 270 497 195 219 593 307 231 1229 2362 357 516 770 113 398 315 676 352 469 589 251 1177 1736 370 958 1015 693 1376 1427 1168 1567 Core 4 | . . . . . . . . . . . . 2 . . . . . . . . . . . . 2 . . . . . . . . Treads 649 | . . . 12 270 367 . . . . . . . . . . . . . . . . . . . . . . . . . . . . Legs 3402 | 1 97 . 95 . . . . . . . . 1212 357 81 . . . 170 293 341 469 286 . . . . . . . . . . . Wheels 6660 | . 29 145 179 . 130 195 219 593 307 231 1229 1148 . 435 770 113 398 145 383 11 . . . . . . . . . . . . . Hover . | . . . . . . . . . . . . . . . . . . . . . . . . . . . . . . . . . . Flight 12039 | . . . . . . . . . . . . . . . . . . . . . . 303 251 1177 1734 370 958 1015 693 1376 1427 1168 1567 Fastest Speed 8 | 120 120 110 110 180 150 150 120 116 116 116 116 100 140 100 110 130 130 130 130 140 163 26 26 23 11 24 8 8 8 9 9 11 10 Average Speed 73 | 120 121 111 134 180 172 150 122 129 116 116 116 130 140 111 112 130 137 147 146 162 171 102 27 23 25 24 15 20 16 12 10 15 12 Slowest Speed 250 | 120 180 120 240 180 200 150 130 140 116 116 116 250 140 140 130 130 140 210 163 170 190 190 94 24 150 25 28 103 84 27 11 99 27 Overloaded Moves 180 | . . . . . . . . . . . . . . . . . . . . . . . . . 2 . 39 11 34 38 56 . . Propulsion Burnouts . | . . . . . . . . . . . . . . . . . . . . . . . . . . . . . . . . . . Robots Hopped 87 | . . . . . . . . . . . . . . . . . . . . . . . . 9 14 2 14 11 4 14 2 7 10 Cave-ins Triggered 2 | . . . . . . . . . . . . . . . . . . . . 1 . . . . . . . . . . . 1 . Teleports 3 | . . . . . . . . . . . . . . . . . . . . . . . . . . . . . . 2 . 1 . Exploration Rate (%) 50 | 2 17 56 27 41 77 36 30 16 46 41 81 94 51 34 85 65 97 32 19 53 66 60 50 29 69 11 85 41 70 82 40 55 71 Regions Visited 33 Branch Regions 23 Pre-discovered Areas 6 | . . . . . 1 . . . . . 2 . . . . . . . . . . 3 . . . . . . . . . . . Known Exits Taken 13 | . . . 1 . . 1 . 1 1 1 . . 1 . . . . 1 1 . . . . 1 . 1 1 1 . . 1 . . Unknown Exits Taken 20 | 1 1 1 . 1 1 . 1 . . . 1 1 . 1 1 1 1 . . 1 1 1 1 . 1 . . . 1 1 . 1 . Scrap Searched 22 | . . 2 . 1 . 2 . . 2 1 3 . 2 . . . . . . 2 3 . 4 . . . . . . . . . . Spaces Dug 241 | . . . . . . . . 2 . 1 . . . 10 6 . . 6 4 8 . . 7 39 31 9 18 13 8 11 32 30 6 Terrain Destroyed 1178 | . . 20 79 1 . 16 23 10 . 1 . 23 8 12 169 17 . 363 12 66 25 . 7 39 48 13 18 83 8 49 32 30 6 Melee 223 | . . . . . . . . 2 . 1 . . . 10 6 . . . . . . . 7 39 31 9 18 13 8 11 32 30 6 Projectile 56 | . . . . . . . . . . . . 5 8 2 1 2 . 14 12 12 . . . . . . . . . . . . . AOE 899 | . . 20 79 1 . 16 23 8 . . . 18 . . 162 15 . 349 . 54 25 . . . 17 4 . 70 . 38 . . . Actions | -11 -10 -10 -9 -9 -9 -8 -8 -7 -7 -7 -7 -7 -6 -6 -6 -6 -6 -6 -5 -5 -5 -5 -4 -4 -4 -3 -3 -2 -2 -2 -1 -1 -1 --------- Run | Scr Mat Min Mat Min Exi Min Mat Fac Low Low Zio Dee Pro Fac Ext Cet Arc Hub Fac Upp Upp Zhi Pro Fac Arm Res Qua Res Tes Sec Acc Com Ac0 Total 28465 | . 163 162 465 300 519 214 295 887 403 272 1329 3157 513 629 1080 137 505 901 952 530 490 1230 362 1260 2010 457 1014 1182 774 1491 1790 1330 1662 Wait 3500 | . 1 2 41 1 . 1 28 151 94 21 71 558 121 26 95 3 29 485 193 162 . 545 100 20 178 50 18 103 38 22 269 43 31 Move 22555 | . 125 144 285 269 496 194 218 592 306 230 1228 2361 356 515 769 112 397 314 675 351 468 588 250 1158 1708 365 932 993 683 1350 1422 1153 1548 Hop 78 | . . . . . . . . . . . . . . . . . . . . . . . . 9 13 2 11 10 4 11 2 7 9 Pick Up 275 | . 8 4 24 6 10 5 11 28 1 4 4 38 1 4 3 . 7 8 7 . . 16 . 7 12 3 10 9 3 13 8 7 14 Fast Attach 217 | . 1 . 7 1 1 1 4 11 . 3 5 20 . 11 15 5 2 6 10 . 2 18 3 3 6 2 3 13 9 25 13 6 11 Attach 120 | . . . 17 3 . 1 4 7 . 4 1 12 . 6 1 . 1 2 4 1 2 2 . 4 7 2 4 1 3 5 1 16 9 Detach 30 | . . . 2 . . . . 3 . . 1 2 . 5 . . . 1 2 1 2 3 . 1 . 2 . . . . 1 4 . Swap 90 | . 3 2 6 . 1 . 1 14 1 . . 13 1 2 7 . 2 2 3 . . 1 . 2 7 7 1 3 2 2 . 6 1 Drop 388 | . 7 . 16 3 11 . 9 27 . 5 9 58 1 8 13 4 1 17 24 2 2 50 2 7 16 2 13 17 8 20 19 14 3 Fire 609 | . 18 10 67 7 . 12 20 51 1 4 10 83 33 16 63 13 66 66 34 13 6 . . . . 5 . 7 . 3 . 1 . Melee 428 | . . . . . . . . 3 . 1 . . . 36 8 . . . . . . 7 7 49 39 17 22 26 23 40 41 73 36 Ram . | . . . . . . . . . . . . . . . . . . . . . . . . . . . . . . . . . . Kick . | . . . . . . . . . . . . . . . . . . . . . . . . . . . . . . . . . . Crush . | . . . . . . . . . . . . . . . . . . . . . . . . . . . . . . . . . . Escape Stasis 31 | . . . . . . . . . . . . . . . 16 . . . . . . . . . . . . . 1 . 14 . . Rewire 144 | . . . . 10 . . . . . . . 12 . . 90 . . . . . 8 . . . 24 . . . . . . . . Trap . | . . . . . . . . . . . . . . . . . . . . . . . . . . . . . . . . . . Miscellaneous . | . . . . . . . . . . . . . . . . . . . . . . . . . . . . . . . . . . Route ------- -11/Scrapyard -10/Materials -10/Mines -9/Materials (discovered 3 exits: Mat / *Min x2) -9/Mines -9/Exiles -8/Mines -8/Materials -7/Factory (discovered 5 exits: *Fac / Sto x2 / *Low x2) -7/Lower Caves -7/Lower Caves -7/Zion (discovered 2 exits: [*Dee] / [*Pro]) -7/Deep Caves -6/Proximity Caves -6/Factory -6/Extension (discovered 2 exits: *Fac / *Cet) -6/Cetus -6/Archives (discovered 3 exits: *Fac / *Hub x2) -6/Hub_04(d) (discovered 4 exits: *Fac x4) -5/Factory (discovered 2 exits: *Upp x2) -5/Upper Caves -5/Upper Caves -5/Zhirov -4/Proximity Caves -4/Factory (discovered 3 exits: Upp x2 / *Arm) -4/Armory -3/Research (discovered 3 exits: Res / *Qua x2) -3/Quarantine -2/Research (discovered 3 exits: *Acc / *Tes x2) -2/Testing (discovered 2 exits: *Acc / [*Sec]) -2/Section 7 -1/Access -1/Command -1/Access_0 Subspace History --------- Turn | Location | Event 1 | -11/Scrapyard | Discovered new exit (range 0) 1 | -11/Scrapyard | Entered Materials 218 | -10/Materials | Discovered new exit (range 7) 225 | -10/Materials | Entered Mines 312 | -10/Mines | Build established: Mutant 335 | -10/Mines | Learned 2 Materials zone layouts 412 | -10/Mines | Discovered new exit (range 9) 420 | -10/Mines | Entered Materials 420 | -9/Materials | Evolved 2 slots: Utility x2 421 | -9/Materials | Identified exit to Materials 465 | -9/Materials | Repaired Med. Laser 565 | -9/Materials | System corruption reached 10% 595 | -9/Materials | Lost 4 parts (1n1u2w) 892 | -9/Materials | Identified exit to Mines 1054 | -9/Materials | Destroyed 10 combat bots 1095 | -9/Materials | Entered Mines 1104 | -9/Mines | Core integrity fell below 50% 1129 | -9/Mines | Lost 4 parts (1n1u2w) 1147 | -9/Mines | Assembled infested the area 1281 | -9/Mines | Received a Mining Laser from a helpful Derelict 1433 | -9/Mines | Learned 2 Materials zone layouts 1444 | -9/Mines | Joined a pair of Derelicts in attacking an 0b10 outpost 1613 | -9/Mines | Discovered new exit (range 5) 1624 | -9/Mines | Entered Exiles 1666 | -9/Exiles | Met 8R-AWN 1700 | -9/Exiles | Met EX-HEX 1758 | -9/Exiles | Met EX-BIN 1785 | -9/Exiles | Aligned with FarCom system 1786 | -9/Exiles | Given EX-Vault access code 1830 | -9/Exiles | Opened EX-Vault 1854 | -9/Exiles | Found Skeleton Box 1889 | -9/Exiles | Warned to stay clear of 0b10 Research branches 2013 | -9/Exiles | Met EX-DEC 2055 | -9/Exiles | Visited The Gauntlet 2439 | -9/Exiles | Learned location of Zion (-7) 2484 | -9/Exiles | Discovered new exit (range 10) 2499 | -9/Exiles | Left Exiles lab with Skeleton Box 2499 | -9/Exiles | Entered Mines 2556 | -8/Mines | Build established: Hauler-Mutant 2812 | -8/Mines | Discovered exit to Materials (range 8) 2831 | -8/Mines | Entered Materials 2831 | -8/Materials | Evolved 2 slots: Propulsion x1, Utility x1 3184 | -8/Materials | Discovered new exit (range 16) 3203 | -8/Materials | Entered Factory 3203 | -7/Factory | Evolved 2 slots: Utility x2 3284 | -7/Factory | Repaired Hvy. Ion Engine 3969 | -7/Factory | Discovered new exit (range 16) 4010 | -7/Factory | Identified exit to Factory 4261 | -7/Factory | Identified exit to Storage 4261 | -7/Factory | Identified exit to Lower Caves 4358 | -7/Factory | Entered Lower Caves 4417 | -7/Lower Caves | Learned Factory emergency access door positions 4480 | -7/Lower Caves | Acquired the password to a Derelict Tinkerer's latest research 4488 | -7/Lower Caves | Found Prototype Special Weapon 4644 | -7/Lower Caves | Learned location of 1 exit from Research 4644 | -7/Lower Caves | Learned Armory trap positions 4644 | -7/Lower Caves | Learned Research stockpile data 4644 | -7/Lower Caves | Learned Extension security intel 4644 | -7/Lower Caves | Learned Factory terminal intel 4644 | -7/Lower Caves | Learned Extension terminal intel 4644 | -7/Lower Caves | Learned Factory garrison access intel 4800 | -7/Lower Caves | Discovered new exit (range 11) 4811 | -7/Lower Caves | Identified exit to Lower Caves 4812 | -7/Lower Caves | Entered another Lower Caves area 4852 | -7/Lower Caves | Found Alien Artifact 4852 | -7/Lower Caves | Identified Core Expander 4852 | -7/Lower Caves | Installed Core Expander, added new Utility slot 4896 | -7/Lower Caves | Encountered a Warlord checkpoint 5123 | -7/Lower Caves | Discovered new exit (range 5) 5128 | -7/Lower Caves | Identified exit to Zion 5130 | -7/Lower Caves | Entered Zion 5186 | -7/Zion | System corruption cleaned by Quarantine Array 5269 | -7/Zion | Given A8's code to call for help 5269 | -7/Zion | Discovered new exit (range 14) 5413 | -7/Zion | Received a visual enhancement algorithm 5421 | -7/Zion | Learned Factory stockpile data 5548 | -7/Zion | Learned Factory emergency access door positions 5823 | -7/Zion | Learned location of Recycling (-7) 5866 | -7/Zion | Learned location of Armory (-4) 5882 | -7/Zion | Identified Molecular Deconstructor 6631 | -7/Zion | Discovered new exit (range 5) 6642 | -7/Zion | Enhanced Grunt warped into view, answering call for help 6652 | -7/Zion | Enhanced Grunt warped into view, answering call for help 6663 | -7/Zion | Saw the warning signs outside the Deep Caves entrance 6673 | -7/Zion | Entered Deep Caves 6673 | -7/Deep Caves | Accompanied by 2 allies 6675 | -7/Deep Caves | Met 5H-AD0 6794 | -7/Deep Caves | Z-Facility disabled 6807 | -7/Deep Caves | Attacked by Z-Imprinter 6817 | -7/Deep Caves | Allies destroyed Z-Imprinter 6851 | -7/Deep Caves | Found Prototype Device 6851 | -7/Deep Caves | Identified Zio. Metafield Generator 6857 | -7/Deep Caves | Found Prototype Protection 6857 | -7/Deep Caves | Identified Zio. Weapon Casing 7242 | -7/Deep Caves | Found Zio. Weapon Casing 7253 | -7/Deep Caves | Found Zio. Weapon Casing 7323 | -7/Deep Caves | Found Prototype Protection 7323 | -7/Deep Caves | Identified Zio. Heavy Carapace 7360 | -7/Deep Caves | Found Zio. Weapon Casing 7374 | -7/Deep Caves | Found Zio. Weapon Casing 7598 | -7/Deep Caves | Discovered new exit (range 6) 7702 | -7/Deep Caves | Spotted as-69860 7720 | -7/Deep Caves | Exposed GOLEM chamber 7722 | -7/Deep Caves | Destroyed as-69860 7736 | -7/Deep Caves | Triggered Deep Caves wall 7744 | -7/Deep Caves | Lost 3 parts (3u) 7757 | -7/Deep Caves | Spotted AS-32486 7761 | -7/Deep Caves | Spotted AS-13809 7768 | -7/Deep Caves | Destroyed AS-13809 7773 | -7/Deep Caves | Allies destroyed AS-32486 7797 | -7/Deep Caves | Found GOLEM Unit 7829 | -7/Deep Caves | Destroyed 44 combat bots 8153 | -7/Deep Caves | Build established: Scavenger-Mutant 8206 | -7/Deep Caves | Triggered Deep Caves wall 8210 | -7/Deep Caves | Spotted as-85796 8233 | -7/Deep Caves | Destroyed as-85796 8651 | -7/Deep Caves | Build established: Mutant 8892 | -7/Deep Caves | Found Supersonic Drone Bay 8950 | -7/Deep Caves | Found Prototype Device 8950 | -7/Deep Caves | Identified Exp. Thermal Shield 8970 | -7/Deep Caves | Found GOLEM Unit 8974 | -7/Deep Caves | Found GOLEM Unit 10254 | -7/Deep Caves | Build established: Scavenger-Mutant 10676 | -7/Deep Caves | Entered Proximity Caves 11380 | -6/Proximity Caves | Entered Factory 11380 | -6/Factory | Evolved 2 slots: Utility x2 11383 | -6/Factory | Loaded intel: 22 terminal locations 11384 | -6/Factory | Loaded intel: 4 garrison access locations 11385 | -6/Factory | Discovered new exit (range 41) 11547 | -6/Factory | Build established: Mutant 11565 | -6/Factory | Lost 5 parts (4u1w) 12155 | -6/Factory | Entered Extension 12156 | -6/Extension | Loaded intel: 8 terminal locations 12187 | -6/Extension | Rescued a captive Derelict 12269 | -6/Extension | Rescued a captive Derelict 12270 | -6/Extension | Rescued a captive Derelict 12362 | -6/Extension | Rescued a captive Derelict 12732 | -6/Extension | Spotted B-75 Beast 12748 | -6/Extension | Allies destroyed B-75 Beast 12776 | -6/Extension | Spotted B-75 Beast 12801 | -6/Extension | Destroyed B-75 Beast 12855 | -6/Extension | Disrupted transfer network 13008 | -6/Extension | Rescued A7 13057 | -6/Extension | Energy Cycler disabled 13205 | -6/Extension | First assault squad dispatched 13278 | -6/Extension | Lost 4 parts (1p1u2w) 13402 | -6/Extension | Discovered new exit (range 10) 13403 | -6/Extension | Discovered new exit (range 6) 13451 | -6/Extension | Entered Cetus 13451 | -6/Cetus | Accompanied by 2 allies 13456 | -6/Cetus | Acquired a Cetus Manufacturing Module code from A7 13469 | -6/Cetus | Spotted Cetus Guard 13469 | -6/Cetus | Spotted Cetus Guard 13471 | -6/Cetus | Spotted Cetus Guard 13472 | -6/Cetus | Destroyed Cetus Guard 13479 | -6/Cetus | Allies destroyed Cetus Guard 13481 | -6/Cetus | Spotted Cetus Guard 13482 | -6/Cetus | Allies destroyed Cetus Guard 13486 | -6/Cetus | Allies destroyed Cetus Guard 13547 | -6/Cetus | Build established: Scavenger-Mutant 13556 | -6/Cetus | Cetus Manufacturing Module disabled 13606 | -6/Cetus | Escorted A7 to Cetus Mainframe 13621 | -6/Cetus | Discovered new exit (range 15) 13649 | -6/Cetus | Entered Archives 13649 | -6/Archives | Accompanied by 1 ally 13654 | -6/Archives | Received a hacking code to weaken MAIN.C 13766 | -6/Archives | Discovered new exit (range 15) 13804 | -6/Archives | Discovered new exit (range 15) 13935 | -6/Archives | Discovered new exit (range 16) 14212 | -6/Archives | Unable to access archive contents 14412 | -6/Archives | Entered Hub_04(d) 14459 | -6/Hub_04(d) | Discovered new exit (range 16) 14653 | -6/Hub_04(d) | Identified exit to Factory 14706 | -6/Hub_04(d) | Lost 3 parts (1n1u1w) 14791 | -6/Hub_04(d) | Found Prototype Device 14791 | -6/Hub_04(d) | Identified Exp. Terrain Scanner 15457 | -6/Hub_04(d) | Network Hub disabled 15458 | -6/Hub_04(d) | System corruption reached 10% 15491 | -6/Hub_04(d) | Network Hub disabled 15492 | -6/Hub_04(d) | Core integrity fell below 50% 15518 | -6/Hub_04(d) | Build established: Hauler-Golem 15558 | -6/Hub_04(d) | Entered Factory 15558 | -5/Factory | Evolved 2 slots: Power x1, Propulsion x1 16554 | -5/Factory | Identified exit to Upper Caves 16637 | -5/Factory | Found Prototype Launcher 16637 | -5/Factory | Identified Tesla Bomb Launcher 16880 | -5/Factory | Entered Upper Caves 17356 | -5/Upper Caves | Learned Factory terminal intel 17434 | -5/Upper Caves | Crushed by falling debris 17544 | -5/Upper Caves | Attracted the attention of an 0b10 checkpoint 17629 | -5/Upper Caves | Discovered new exit (range 12) 17652 | -5/Upper Caves | Entered another Upper Caves area 17803 | -5/Upper Caves | Encountered a Warlord checkpoint 18162 | -5/Upper Caves | Attracted the attention of an 0b10 outpost 18194 | -5/Upper Caves | Destroyed 7 combat bots 18199 | -5/Upper Caves | Lost 4 parts (1n2u1w) 18448 | -5/Upper Caves | Discovered new exit (range 8) 18467 | -5/Upper Caves | Build established: Hauler-Mutant 18469 | -5/Upper Caves | Learned Factory emergency access door positions 18482 | -5/Upper Caves | Entered Zhirov 18482 | -5/Zhirov | Accompanied by 2 allies 18483 | -5/Zhirov | Discovered new exit (range 3) 18517 | -5/Zhirov | Met Zhirov 18551 | -5/Zhirov | Learned location of Quarantine (-3) 18551 | -5/Zhirov | Learned location of Testing (-2) 18551 | -5/Zhirov | Learned location of Command (-1) 18570 | -5/Zhirov | Zhirov requested help retrieving the SGEMP Prototype 18766 | -5/Zhirov | Found Alien Artifact 18766 | -5/Zhirov | Identified Integrated Reactor 18766 | -5/Zhirov | Installed Integrated Reactor, increased core energy generation (+10) 19211 | -5/Zhirov | Build established: Mutant 19634 | -5/Zhirov | Found Alien Artifact 19718 | -5/Zhirov | Entered Proximity Caves 19718 | -4/Proximity Caves | Accompanied by 2 allies 19723 | -4/Proximity Caves | Attracted the attention of an 0b10 checkpoint 19863 | -4/Proximity Caves | Spotted B-86 Titan 19901 | -4/Proximity Caves | Discovered new exit (range 5) 19909 | -4/Proximity Caves | Entered Factory 19909 | -4/Factory | Evolved 2 slots: Propulsion x1, Utility x1 19911 | -4/Factory | Loaded intel: 20 terminal locations 19920 | -4/Factory | Identified exit to Upper Caves 19920 | -4/Factory | Identified exit to Armory 20148 | -4/Factory | Build established: Hacker-Sprinter 20253 | -4/Factory | Central database locked down 20265 | -4/Factory | Fabricated Exp. Hacking Suite? 20296 | -4/Factory | Fabricated Exp. Hacking Suite? 20356 | -4/Factory | Entered Armory 20357 | -4/Armory | Loaded intel: 37 trap records 20571 | -4/Armory | Fabricated Adv. Reaction Control System? 20665 | -4/Armory | Fabricated Adv. Melee Analysis Suite? 20770 | -4/Armory | Fabricated Exp. Hacking Suite? 20808 | -4/Armory | Central database locked down 20887 | -4/Armory | Found Adv. Force Booster 20900 | -4/Armory | Fabricated Exp. Hacking Suite? 20902 | -4/Armory | Fabricated Nanoactuators? 20986 | -4/Armory | Repaired Exp. Utility Shielding 21041 | -4/Armory | Spotted B-86 Titan 21081 | -4/Armory | Fabricated Adv. Cloaking Device? 21140 | -4/Armory | Discovered new exit (range 3) 21141 | -4/Armory | Entered Research 21141 | -3/Research | Evolved 2 slots: Propulsion x1, Utility x1 21142 | -3/Research | Identified exit to Research 21149 | -3/Research | Identified Transdimensional Reconstructor 21205 | -3/Research | Found Prototype Device 21210 | -3/Research | Identified Exp. Shield Generator 21245 | -3/Research | Local fabrication network quarantined 21262 | -3/Research | Fabricated Nanosword? 21300 | -3/Research | Identified exit to Quarantine 21313 | -3/Research | Central database locked down 21357 | -3/Research | Entered Quarantine 21358 | -3/Quarantine | Maximum security lockdown engaged 21366 | -3/Quarantine | Cryocooling Duct disabled 21381 | -3/Quarantine | Ambient heat levels rising (+20) 21388 | -3/Quarantine | Cryocooling Duct disabled 21403 | -3/Quarantine | Ambient heat levels rising (+20) 21405 | -3/Quarantine | Found Alien Impact Weapon 21410 | -3/Quarantine | Found Prototype Launcher 21414 | -3/Quarantine | Found Alien Artifact 21418 | -3/Quarantine | Spotted Alpha 7 21426 | -3/Quarantine | Found Alien Artifact 21457 | -3/Quarantine | Found Alien Slashing Weapon 21492 | -3/Quarantine | Discovered exit to Research (range 13) 21507 | -3/Quarantine | Spotted Striker 21546 | -3/Quarantine | Identified Adv. Micro-nuke Launcher 21607 | -3/Quarantine | Entered Research 21607 | -2/Research | Evolved 2 slots: Utility x2 21669 | -2/Research | Spotted B-90 Cyclops 21683 | -2/Research | Destroyed 9 combat bots 21763 | -2/Research | Found Nanosword 21766 | -2/Research | Found Faulty Nanosword 21767 | -2/Research | Discovered new exit (range 16) 21767 | -2/Research | Found Nanosword 21769 | -2/Research | Found Nanosword 21793 | -2/Research | Found Nanosword 21796 | -2/Research | Found Nanosword 21857 | -2/Research | First assault squad dispatched 21871 | -2/Research | Identified Core Reset Matrix 21871 | -2/Research | Identified Subatomic Replicator 21871 | -2/Research | Identified Sigix Broadsword 21904 | -2/Research | Fabricated Exp. Shield Generator (x1) 21973 | -2/Research | Identified exit to Testing 22002 | -2/Research | Local fabrication network quarantined 22015 | -2/Research | Spotted B-90 Cyclops 22030 | -2/Research | High security lockdown imminent 22038 | -2/Research | Entered Testing 22039 | -2/Testing | Maximum security lockdown engaged 22039 | -2/Testing | Protovariant out of control (PY-HCYKDVPVTW) 22039 | -2/Testing | Unleashed a protovariant (PY-HCYKDVPVTW) 22068 | -2/Testing | Garrison activated, responded to threat 22134 | -2/Testing | Lost 3 parts (1n2u) 22146 | -2/Testing | Found Prototype Protection 22146 | -2/Testing | Identified Med. Regenerative Plating 22149 | -2/Testing | Found Prototype Protection 22163 | -2/Testing | Spotted PY-HCYKDVPVTW 22180 | -2/Testing | Discovered new exit (range 7) 22208 | -2/Testing | Identified Core Stripper 22214 | -2/Testing | Spotted Fortress 22222 | -2/Testing | Destroyed Fortress 22225 | -2/Testing | Found Prototype Reactor 22233 | -2/Testing | Found Prototype Device 22233 | -2/Testing | Identified Thermal Barrier 22243 | -2/Testing | Discovered new exit (range 6) 22263 | -2/Testing | Lost 3 parts (3u) 22271 | -2/Testing | Entered Section 7 22272 | -2/Section 7 | Maximum security lockdown engaged 22293 | -2/Section 7 | Found Alien Artifact 22293 | -2/Section 7 | Identified Integrity Redistributor 22293 | -2/Section 7 | Used Integrity Redistributor, redistributed integrity from core (-93) 22318 | -2/Section 7 | Identified Vortex Chain Reactor 22323 | -2/Section 7 | Found Integrity Redistributor 22391 | -2/Section 7 | Found Alien Artifact 22391 | -2/Section 7 | Identified Integrated Dissipator 22391 | -2/Section 7 | Installed Integrated Dissipator, increased core heat dissipation (+20) 22397 | -2/Section 7 | Spotted S7 Guard 22400 | -2/Section 7 | Found Alien Artifact 22410 | -2/Section 7 | Spotted Executioner 22412 | -2/Section 7 | Spotted Executioner 22431 | -2/Section 7 | Found Alien Artifact 22431 | -2/Section 7 | Identified Matter Drive 22436 | -2/Section 7 | Found Alien Artifact 22436 | -2/Section 7 | Identified Hpw. Transdimensional Reconstructor 22436 | -2/Section 7 | Warped through subspace 22442 | -2/Section 7 | Spotted B-90 Cyclops 22445 | -2/Section 7 | Spotted Alpha 7 22447 | -2/Section 7 | Spotted Alpha 7 22449 | -2/Section 7 | Found Prototype Device 22449 | -2/Section 7 | Identified Adv. Kinecellerator 22456 | -2/Section 7 | Spotted Striker 22459 | -2/Section 7 | Spotted Striker 22469 | -2/Section 7 | Used Integrity Redistributor, redistributed integrity from core (-80) 22472 | -2/Section 7 | Found Transdimensional Reconstructor 22480 | -2/Section 7 | Spotted B-99 Colossus 22488 | -2/Section 7 | Found Integrated Reactor 22488 | -2/Section 7 | Installed Integrated Reactor, increased core energy generation (+10) 22489 | -2/Section 7 | Found Integrated Reactor 22489 | -2/Section 7 | Installed Integrated Reactor, increased core energy generation (+10) 22491 | -2/Section 7 | Found Integrated Reactor 22491 | -2/Section 7 | Installed Integrated Reactor, increased core energy generation (+10) 22504 | -2/Section 7 | Found Alien Artifact 22504 | -2/Section 7 | Identified LRC Matter Compressor 22504 | -2/Section 7 | Installed LRC Matter Compressor, increased matter storage capacity (+125) 22506 | -2/Section 7 | Found Alien Artifact 22506 | -2/Section 7 | Identified LRC Boosters 22506 | -2/Section 7 | Installed LRC Boosters, increased mass support (+10) 22507 | -2/Section 7 | Found LRC Boosters 22507 | -2/Section 7 | Installed LRC Boosters, increased mass support (+10) 22518 | -2/Section 7 | Found Core Expander 22518 | -2/Section 7 | Installed Core Expander, added new Utility slot 22544 | -2/Section 7 | Warped through subspace 22551 | -2/Section 7 | Found Transdimensional Reconstructor 22589 | -2/Section 7 | Identified Core Regenerator 22589 | -2/Section 7 | Used Core Regenerator, restored core integrity (+362) 22590 | -2/Section 7 | Found Alien Energy Gun 22592 | -2/Section 7 | Found Alien Energy Gun 22613 | -2/Section 7 | Spotted B-90 Cyclops 22617 | -2/Section 7 | Found Integrated Reactor 22617 | -2/Section 7 | Installed Integrated Reactor, increased core energy generation (+10) 22640 | -2/Section 7 | Spotted Executioner 22640 | -2/Section 7 | Spotted Striker 22640 | -2/Section 7 | Spotted Striker 22640 | -2/Section 7 | Discovered new exit (range 10) 22647 | -2/Section 7 | Entered Access 22647 | -1/Access | Evolved 1 slot: Weapon x1 22843 | -1/Access | Found Unknown Device 22843 | -1/Access | Identified Antimissile System 22897 | -1/Access | First assault squad dispatched 22908 | -1/Access | Fabricated Nanoactuators (x2) 22934 | -1/Access | Identified exit to Command 22980 | -1/Access | Fabricated Exp. Propulsion Shielding (x1) 23005 | -1/Access | Fabricated Adv. Melee Analysis Suite (x1) 23030 | -1/Access | Fabricated Adv. Melee Analysis Suite (x1) 23161 | -1/Access | Spotted B-99 Colossus 23163 | -1/Access | Spotted B-99 Colossus 23163 | -1/Access | Spotted B-99 Colossus 23191 | -1/Access | Fabricated Exp. Propulsion Shielding? 23230 | -1/Access | Entered Command 23259 | -1/Command | Repaired Exp. Propulsion Shielding 23328 | -1/Command | Found Beam Splitter 23340 | -1/Command | Disengaged cave seal 23345 | -1/Command | Found Adv. Force Booster 23432 | -1/Command | Spotted Combat Programmer 23441 | -1/Command | Spotted M Guard 23441 | -1/Command | Spotted Combat Programmer 23458 | -1/Command | Destroyed Combat Programmer 23471 | -1/Command | Destroyed Combat Programmer 23480 | -1/Command | Identified Sigix Quantum Sheargun (x2) 23480 | -1/Command | Used Core Reset Matrix 23486 | -1/Command | Identified SHELL Armor 23523 | -1/Command | First assault squad dispatched 23535 | -1/Command | Met MAIN.C 23536 | -1/Command | 0b10 Conduit disabled 23569 | -1/Command | Spotted M Guard 23590 | -1/Command | System corruption reached 10% 23618 | -1/Command | Crushed by falling debris 23668 | -1/Command | Lost 5 parts (4u1w) 23675 | -1/Command | Warped through subspace to slip node 23675 | -1/Command | Discovered new exit (range 4) 23678 | -1/Command | Used Subatomic Replicator to replicate Nanosword 23682 | -1/Command | Entered Access_0 23683 | -1/Access_0 | Sensed 3 artifacts in vicinity 23683 | -1/Access_0 | Met Architect 23696 | -1/Access_0 | Found Hpw. Transdimensional Reconstructor 23702 | -1/Access_0 | Subspace Access Node disabled 23709 | -1/Access_0 | A6 warped into view 23711 | -1/Access_0 | Found Sigix Corpse 23753 | -1/Access_0 | Subspace Access Node disabled 23774 | -1/Access_0 | A5 warped into view 23775 | -1/Access_0 | Subspace Access Node disabled 23810 | -1/Access_0 | Found Prototype Launcher 23835 | -1/Access_0 | Found Integrated Dissipator 23835 | -1/Access_0 | Installed Integrated Dissipator, increased core heat dissipation (+20) 23846 | -1/Access_0 | A4 warped into view 23929 | -1/Access_0 | Lost 6 parts (1p2n3u) 23933 | -1/Access_0 | Build established: Alien-Sprinter 23941 | -1/Access_0 | Core integrity fell below 50% 23951 | -1/Access_0 | Found Integrity Redistributor 23973 | -1/Access_0 | Extracted Singularity Gate Test 138-C access codes from A2's data core 24000 | -1/Access_0 | Found Centrium Heavy Armor Plating 24003 | -1/Access_0 | Lost 6 parts (1p3n2u) 24013 | -1/Access_0 | Emitted hypermatrix ping 24018 | -1/Access_0 | Assembled emerged from beneath the floor 24018 | -1/Access_0 | Started Test 138-B, establishing a local singularity 24018 | -1/Access_0 | Started Test 138-C, cascade imminent 24018 | *** | Destroyed Tau Ceti IV! Last Messages --------------- 24010_ Penetrated by Quantum Shear. 24013_ Emitted hypermatrix ping. 24018_ Connecting with Gate Controls... 24018_ Current location identified: Access_0 >>Gate Test 138-A Running Singularity Gate diagnostics... All systems nominal. >>Gate Test 138-B Preparing Singularity Gate activation... Stable singularity established. >>Gate Test 138-C Initiating Test 138-C... Warning: Experimental formulas incomplete. Potential effects include instability. Repeat command to confirm test. >>Gate Test 138-C Initiating Test 138-C... Applying incomplete calculations.... INSTABILITY DETECTED, CASCADE IMMINENT. [Achievement: Stardust] Map ----- +----------------------------------------------------+ | ???????????????# ###### ### "# ############?? | | ????????????????# ## ## #????????????? | | ????????????????# ## ## #????????????? | | ????????????????## # #### # #????????????? | | ???????????????????# #???# ##???????????? | | ???????????????????# #???# ## ###?????????? | | ???????????????????# #??????## "#?????????? | | ???????????????????# #???????### ##????????? | | ???????????????????# #???????## ##???????? | | ???????????????????# #???????# "#???????? | | ???????????????????# #???????# #????????? | | ??????????????###### ######??# ##????????? | | ??????????????#""""" """""#??## "#?????????? | | ???????????????#"""" """"#????#" ##?????????? | | ??????????????##" "##????" #??????????? | | ??????????????#"" ""#????" #??????????? | | ??????????????#"" ""#????# #??????????? | | ??????????????##" "##????# #??????????? | | ???????????????#" "#????## #??????????? | | ???????????????#" "#????# #??????###?? | | ???????????????#" "#????# "##?????# "#"" | | ??????????????##" "##???# ##?????## # | | ??????????????#"" ""#??## ##????## ##"= | | ??????????????#"" ""#??# ##??## ##?"[ | | ??????????????##" "##??# #### ##??"" | | ???????????????#"""" @A""##?## ## ##????"" | | ??????????????#""""" """""#?# "##??????? | | ??????????????###### ######?# ##???????? | | ???????????????????# #??????# #????????? | | ???????????????????# #??????### #????????? | | ???????????????????# #?????#### ###????????? | | ???????????????????# #???###" ##??????????? | | ???????????????????# #???" ##??????????? | | ???????????????????# #??#"" #??????????? | | ???????????????????# #??# #??????????? | | ???????????????????# ##?#"" ##??????????? | | ???????????????????# #???" " #???????????? | | ???????????????????# #???#"" #???????????? | | ???????????????????# #####" #???????????? | | ???????????????????# # ## # #???????????? | | ???????????????????# # #### #???????????? | | ???????????????????### ## "#??## #?????????? | | ????????????????????# ##???# #????????? | | ???????????????????## ###????? #????????? | | ???????????????????# ""#??????# #????????? | | ??????????????????#"# #######??? ##????????? | | ??????????????????##" ###" ##?? ##?????????? | | ???????????????????## ## ## ## ##??????????? | | ????????????????????##?# ##???????????? | | ???????????????""""""??# !!] #?????????????? | +----------------------------------------------------+ Best States ------------- Heat Dissipation 92 Energy Generation 105 Energy Capacity 1700 Matter Stores 425 Matter Capacity 425 Sight Range 18 Robot Scan Range 16 Terrain Scan Range 30 Terrain Scan Density 10 Jamming Range 14 Additional Mass Support 20 Armor Coverage 1200 Resistance: KI 15 Resistance: TH 75 Resistance: EX 15 Resistance: EM 15 Resistance: I 15 Resistance: S 15 Resistance: P 15 Propulsion Shielding 90 Utility Shielding 90 Weapon Shielding 100 Melee Speed Boost 30 Phase Shifting 8 Evasion (%) 89 Targeting Accuracy 8 Melee Accuracy 16 Core Analysis 8 Armor Integrity Analysis 33 Recoil Reduction 2 Energy Filtering 30 Kinecelleration 50 Force Boost 5 Overload Regulation 80 Offensive Hacking 48 Defensive Hacking 14 Item Schematics ----------------- None Robot Schematics ------------------ None Fabricated ------------ Exp. Hacking Suite | x1 | -4/Factory Exp. Hacking Suite | x1 | -4/Factory Adv. Reaction Control System | x1 | -4/Armory Adv. Melee Analysis Suite | x1 | -4/Armory Exp. Hacking Suite | x1 | -4/Armory Exp. Hacking Suite | x1 | -4/Armory Nanoactuators | x2 | -4/Armory Adv. Cloaking Device | x1 | -4/Armory | Preloaded Nanosword | x1 | -3/Research Exp. Shield Generator | x1 | -2/Research Nanoactuators | x2 | -1/Access Exp. Propulsion Shielding | x1 | -1/Access Adv. Melee Analysis Suite | x1 | -1/Access Adv. Melee Analysis Suite | x1 | -1/Access Exp. Propulsion Shielding | x1 | -1/Access Alien Tech Used ----------------- Core Expander Integrated Reactor Core Stripper Integrity Redistributor Integrated Dissipator Matter Drive High-powered Transdimensional Reconstructor LRC Matter Compressor LRC Boosters Transdimensional Reconstructor Core Regenerator Sigix Broadsword Core Reset Matrix Subatomic Replicator Achievements -------------- Most Wanted Stardust Challenges ------------ None Game ------ Seed TrapStructuralConverter Manual? 0 Play Time 05:55:39 Cumulative 316.9 hours Start 2020.06.07 @ 11:18:36 End 2020.06.09 @ 20:33:59 Sessions 4 Manual Loads 0 Difficulty Rogue Special Mode None Game No. 338 Rogue 338 Adventurer 0 Explorer 0 Win Type 5 Total 29 Types 17/3/2/1/2/1/3 Lore% 93 Gallery% 87 Achievement% 78 Wizard Run 0 Options --------- ASCII 0 Keyboard 0 Movement Arrows Keybinds 0 Fullscreen 2 Font 18/SmallcapsGlow Map View 76x50 Tactical HUD 1 Map Filters NONE Filters NONE Steam 1 RUN: 3acc1c0a-fa84-4279-b3d4-05bcc580c574